Workbook

Sheet Cover
B2: DCF Valuation Model
B3: Isaiah Moragne, MBA
B4: Equity Valuation via Discounted Cash Flow Analysis
B6: Contact
B7: Website: | C7: https://isaiahmba.com
B8: Email: | C8: isaiahmoragne12@gmail.com
B10: How to Use
B11: 1 | C11: Go to the 'DCF' tab — this is the main output.
B12: 2 | C12: Enter the ticker symbol (e.g. AAPL, MSFT) in the Ticker input cell.
B13: 3 | C13: Refresh data: Data ribbon → Refresh All. This pulls the latest financials, treasury yield, and shares outstanding.
B14: 4 | C14: Review assumptions on 'Model Inputs' and 'WACC' tabs — adjust growth rates, margins, or discount rate as needed.
B15: 5 | C15: Check 'Model Checks' tab to confirm the model ties out before relying on outputs.
B16: 6 | C16: The DCF tab shows the implied share price and upside vs. current market price.
B18: Workbook Tabs
B19: DCF | C19: Main valuation output and summary
B20: Model Inputs | C20: Forecast assumptions (growth, margins, capex, etc.)
B21: WACC | C21: Weighted Average Cost of Capital build
B22: Working Capital | C22: NWC schedule
B23: 3 Statements | C23: Historical Income Statement, Balance Sheet, Cash Flows (from SEC EDGAR)
B24: Historical Actuals | C24: Historical financials used to anchor projections
B25: Data Queries | C25: Live data pulls (treasury, stock info, tax rate, shares, cost of debt)
B26: Model Checks | C26: Integrity checks and tie-outs
B27: Source Audit | C27: Citations and source references
B28: Query Setup | C28: Configuration for data queries
B30: Disclaimer
B31: This model is provided for educational and informational purposes only. It does not constitute investment advice, a recommendation, or a solicitation to buy or sell any security. Outputs depend on third-party data sources and user-supplied assumptions, both of which may contain errors. Always conduct your own due diligence and consult a licensed financial advisor before making investment decisions. The author assumes no liability for any losses or damages arising from use of this model.
B37: © 2026 Isaiah Moragne, MBA. All rights reserved.

Sheet DCF
A1: Dynamic DCF Valuation Model
A2: Ticker | B2: Date
A3: AAPL | B3: =TODAY() -> 4614100.00%
A4: Case (1=Bear, 2=Base, 3=Bull) | B4: 2
A5: Selected Case | B5: =IFERROR(CHOOSE($B$4,"Bear","Base","Bull"),"INVALID") -> Base
A7: VALUATION SUMMARY
A8: Sum of PV of FCFs ($) | B8: =SUM(C58:G58) -> $645,845,380,692
A9: (+) PV of Terminal Value ($) | B9: =B62 -> $1,906,614,152,706
A10: Enterprise Value ($) | B10: =B8+B9 -> $2,552,459,533,397
A11: (-) Net Debt / (Cash) ($) | B11: =B22 -> $54,744,000,000
A12: Equity Value ($) | B12: =B10+B11 -> $2,607,203,533,397
A13: Diluted Shares Outstanding | B13: =B20 -> 15,004,697,000
A14: Implied Share Price | B14: =IFERROR(B12/B13,0) -> $173.76
A15: Current Share Price | B15: =B19 -> $270.71
A16: Implied Upside / (Downside) | B16: =IFERROR(B14/B15-1,0) -> (35.8%)
A19: Current Stock Price ($) | B19: ='Model Inputs'!B25 -> $270.71
A20: Diluted Shares Outstanding | B20: ='Model Inputs'!B26 -> 15,004,697,000
A21: Market Cap ($) | B21: ='Model Inputs'!B27 -> $4,000,106,520,630
A22: Net Debt / (Cash) ($) | B22: ='Model Inputs'!B36 -> $54,744,000,000
A23: Base Fiscal Year | B23: ='Model Inputs'!B39 -> 2025
A24: Base Revenue Source | B24: ='Model Inputs'!D28 -> OK
A25: Current Shares Outstanding | B25: ='Model Inputs'!B40 -> 14,776,353,000
A27: SELECTED CASE ASSUMPTIONS
A28: Assumption | B28: FY1 | C28: FY2 | D28: FY3 | E28: FY4 | F28: FY5
A29: Revenue Growth (%) | B29: =CHOOSE($B$4,'Model Inputs'!B45,'Model Inputs'!B55,'Model Inputs'!B65) -> 8.00% | C29: =CHOOSE($B$4,'Model Inputs'!C45,'Model Inputs'!C55,'Model Inputs'!C65) -> 10.00% | D29: =CHOOSE($B$4,'Model Inputs'!D45,'Model Inputs'!D55,'Model Inputs'!D65) -> 8.00% | E29: =CHOOSE($B$4,'Model Inputs'!E45,'Model Inputs'!E55,'Model Inputs'!E65) -> 6.00% | F29: =CHOOSE($B$4,'Model Inputs'!F45,'Model Inputs'!F55,'Model Inputs'!F65) -> 4.00%
A30: EBIT Margin (%) | B30: =CHOOSE($B$4,'Model Inputs'!B46,'Model Inputs'!B56,'Model Inputs'!B66) -> 33.97% | C30: =CHOOSE($B$4,'Model Inputs'!C46,'Model Inputs'!C56,'Model Inputs'!C66) -> 35.97% | D30: =CHOOSE($B$4,'Model Inputs'!D46,'Model Inputs'!D56,'Model Inputs'!D66) -> 37.97% | E30: =CHOOSE($B$4,'Model Inputs'!E46,'Model Inputs'!E56,'Model Inputs'!E66) -> 38.97% | F30: =CHOOSE($B$4,'Model Inputs'!F46,'Model Inputs'!F56,'Model Inputs'!F66) -> 39.97%
A31: Tax Rate (%) | B31: =CHOOSE($B$4,'Model Inputs'!B47,'Model Inputs'!B57,'Model Inputs'!B67) -> 15.61% | C31: =CHOOSE($B$4,'Model Inputs'!C47,'Model Inputs'!C57,'Model Inputs'!C67) -> 15.61% | D31: =CHOOSE($B$4,'Model Inputs'!D47,'Model Inputs'!D57,'Model Inputs'!D67) -> 15.61% | E31: =CHOOSE($B$4,'Model Inputs'!E47,'Model Inputs'!E57,'Model Inputs'!E67) -> 15.61% | F31: =CHOOSE($B$4,'Model Inputs'!F47,'Model Inputs'!F57,'Model Inputs'!F67) -> 15.61%
A32: D&A (% of Revenue) | B32: =CHOOSE($B$4,'Model Inputs'!B48,'Model Inputs'!B58,'Model Inputs'!B68) -> 2.81% | C32: =CHOOSE($B$4,'Model Inputs'!C48,'Model Inputs'!C58,'Model Inputs'!C68) -> 2.81% | D32: =CHOOSE($B$4,'Model Inputs'!D48,'Model Inputs'!D58,'Model Inputs'!D68) -> 2.81% | E32: =CHOOSE($B$4,'Model Inputs'!E48,'Model Inputs'!E58,'Model Inputs'!E68) -> 2.81% | F32: =CHOOSE($B$4,'Model Inputs'!F48,'Model Inputs'!F58,'Model Inputs'!F68) -> 2.81%
A33: CapEx (% of Revenue) | B33: =CHOOSE($B$4,'Model Inputs'!B49,'Model Inputs'!B59,'Model Inputs'!B69) -> 3.06% | C33: =CHOOSE($B$4,'Model Inputs'!C49,'Model Inputs'!C59,'Model Inputs'!C69) -> 3.06% | D33: =CHOOSE($B$4,'Model Inputs'!D49,'Model Inputs'!D59,'Model Inputs'!D69) -> 3.06% | E33: =CHOOSE($B$4,'Model Inputs'!E49,'Model Inputs'!E59,'Model Inputs'!E69) -> 3.06% | F33: =CHOOSE($B$4,'Model Inputs'!F49,'Model Inputs'!F59,'Model Inputs'!F69) -> 3.06%
A34: Change in NWC (% of Change in Revenue) | B34: =CHOOSE($B$4,'Model Inputs'!B50,'Model Inputs'!B60,'Model Inputs'!B70) -> 3.00% | C34: =CHOOSE($B$4,'Model Inputs'!C50,'Model Inputs'!C60,'Model Inputs'!C70) -> 3.00% | D34: =CHOOSE($B$4,'Model Inputs'!D50,'Model Inputs'!D60,'Model Inputs'!D70) -> 3.00% | E34: =CHOOSE($B$4,'Model Inputs'!E50,'Model Inputs'!E60,'Model Inputs'!E70) -> 3.00% | F34: =CHOOSE($B$4,'Model Inputs'!F50,'Model Inputs'!F60,'Model Inputs'!F70) -> 3.00%
A35: Terminal Growth Rate | B35: =CHOOSE($B$4,'Model Inputs'!B51,'Model Inputs'!B61,'Model Inputs'!B71) -> 3.00%
A36: WACC | B36: =CHOOSE($B$4,'Model Inputs'!B52,'Model Inputs'!B62,'Model Inputs'!B72) -> 9.68%
A39: CASH FLOW PROJECTIONS ($)
A40: ($) | B40: LTM / Base FY | C40: FY1E | D40: FY2E | E40: FY3E | F40: FY4E | G40: FY5E
A41: Revenue | B41: ='Model Inputs'!B28 -> $416,161,000,000 | C41: =B41*(1+B29) -> $449,453,880,000 | D41: =C41*(1+C29) -> $494,399,268,000 | E41: =D41*(1+D29) -> $533,951,209,440 | F41: =E41*(1+E29) -> $565,988,282,006 | G41: =F41*(1+F29) -> $588,627,813,287
A42: % growth | C42: =C41/B41-1 -> 8.00% | D42: =D41/C41-1 -> 10.00% | E42: =E41/D41-1 -> 8.00% | F42: =F41/E41-1 -> 6.00% | G42: =G41/F41-1 -> 4.00%
A43: EBIT | B43: ='Model Inputs'!B29 -> $133,050,000,000 | C43: =C41*B30 -> $152,683,077,600 | D43: =D41*C30 -> $177,839,370,720 | E43: =E41*D30 -> $202,745,544,566 | F43: =F41*E30 -> $220,570,160,060 | G43: =G41*F30 -> $235,279,244,596
A44: % margin | B44: =B43/B41 -> 31.97% | C44: 33.97% | D44: 35.97% | E44: 37.97% | F44: 38.97% | G44: 39.97%
A45: (-) Taxes | C45: =-C43*B31 -> ($23,833,831,979) | D45: =-D43*C31 -> ($27,760,729,923) | E45: =-E43*D31 -> ($31,648,584,242) | F45: =-F43*E31 -> ($34,431,007,137) | G45: =-G43*F31 -> ($36,727,095,577)
A46: NOPAT | C46: =C43+C45 -> $128,849,245,621 | D46: =D43+D45 -> $150,078,640,797 | E46: =E43+E45 -> $171,096,960,324 | F46: =F43+F45 -> $186,139,152,923 | G46: =G43+G45 -> $198,552,149,019
A47: (+) D&A | C47: =C41*B32 -> $12,633,840,000 | D47: =D41*C32 -> $13,897,224,000 | E47: =E41*D32 -> $15,009,001,920 | F47: =F41*E32 -> $15,909,542,035 | G47: =G41*F32 -> $16,545,923,717
A48: (-) CapEx | C48: =-C41*B33 -> ($13,732,200,000) | D48: =-D41*C33 -> ($15,105,420,000) | E48: =-E41*D33 -> ($16,313,853,600) | F48: =-F41*E33 -> ($17,292,684,816) | G48: =-G41*F33 -> ($17,984,392,209)
A49: (-) Change in NWC | C49: =-(C41-B41)*B34 -> ($998,786,400) | D49: =-(D41-C41)*C34 -> ($1,348,361,640) | E49: =-(E41-D41)*D34 -> ($1,186,558,243) | F49: =-(F41-E41)*E34 -> ($961,112,177) | G49: =-(G41-F41)*F34 -> ($679,185,938)
A50: Unlevered Free Cash Flow | C50: =C46+C47+C48+C49 -> $126,752,099,221 | D50: =D46+D47+D48+D49 -> $147,522,083,157 | E50: =E46+E47+E48+E49 -> $168,605,550,401 | F50: =F46+F47+F48+F49 -> $183,794,897,966 | G50: =G46+G47+G48+G49 -> $196,434,494,589
A52: DISCOUNTING & TERMINAL VALUE
A53: WACC (from selected case) | B53: =B36 -> 9.68%
A54: Terminal Growth (from selected case) | B54: =B35 -> 3.00%
A55: Terminal Value Discount Timing | B55: ='Model Inputs'!B22 -> Year-End
A56: Discount Period (mid-year) | C56: =0.5 -> 0.5 | D56: =1.5 -> 1.5 | E56: =2.5 -> 2.5 | F56: =3.5 -> 3.5 | G56: =4.5 -> 4.5
A57: Discount Factor | C57: =1/(1+$B$53)^C56 -> 0.9548 | D57: =1/(1+$B$53)^D56 -> 0.8705 | E57: =1/(1+$B$53)^E56 -> 0.7937 | F57: =1/(1+$B$53)^F56 -> 0.7236 | G57: =1/(1+$B$53)^G56 -> 0.6597
A58: PV of Unlevered FCF | C58: =C50*C57 -> $121,027,093,093 | D58: =D50*D57 -> $128,421,979,869 | E58: =E50*E57 -> $133,816,317,728 | F58: =F50*F57 -> $132,992,007,717 | G58: =G50*G57 -> $129,587,982,285
A60: Terminal FCF (FY5 x (1+g)) | B60: =G50*(1+B54) -> $202,327,529,426
A61: Terminal Value (Gordon Growth) | B61: =IF(B53<=B54,NA(),B60/(B53-B54)) -> $3,026,832,558,197
A62: PV of Terminal Value | B62: =IF('Model Inputs'!$B$22="Year-End",B61/(1+B53)^5,B61*G57) -> $1,906,614,152,706
A65: SENSITIVITY: IMPLIED SHARE PRICE - WACC vs TERMINAL GROWTH
A67: WACC down / Terminal g across | B67: =$B$54-0.01 -> 2.00% | C67: =$B$54-0.005 -> 2.50% | D67: =$B$54 -> 3.00% | E67: =$B$54+0.005 -> 3.50% | F67: =$B$54+0.01 -> 4.00%
A68: =$B$53-0.01 -> 8.68% | B68: =IF($A68<=B$67,NA(),((SUMPRODUCT($C$50:$G$50,1/(1+$A68)^$C$56:$G$56)+($G$50*(1+B$67)/($A68-B$67))*IF('Model Inputs'!$B$22="Year-End",1/(1+$A68)^5,1/(1+$A68)^$G$56))-$B$22)/$B$20) -> $172.14 | C68: =IF($A68<=C$67,NA(),((SUMPRODUCT($C$50:$G$50,1/(1+$A68)^$C$56:$G$56)+($G$50*(1+C$67)/($A68-C$67))*IF('Model Inputs'!$B$22="Year-End",1/(1+$A68)^5,1/(1+$A68)^$G$56))-$B$22)/$B$20) -> $183.49 | D68: =IF($A68<=D$67,NA(),((SUMPRODUCT($C$50:$G$50,1/(1+$A68)^$C$56:$G$56)+($G$50*(1+D$67)/($A68-D$67))*IF('Model Inputs'!$B$22="Year-End",1/(1+$A68)^5,1/(1+$A68)^$G$56))-$B$22)/$B$20) -> $196.83 | E68: =IF($A68<=E$67,NA(),((SUMPRODUCT($C$50:$G$50,1/(1+$A68)^$C$56:$G$56)+($G$50*(1+E$67)/($A68-E$67))*IF('Model Inputs'!$B$22="Year-End",1/(1+$A68)^5,1/(1+$A68)^$G$56))-$B$22)/$B$20) -> $212.75 | F68: =IF($A68<=F$67,NA(),((SUMPRODUCT($C$50:$G$50,1/(1+$A68)^$C$56:$G$56)+($G$50*(1+F$67)/($A68-F$67))*IF('Model Inputs'!$B$22="Year-End",1/(1+$A68)^5,1/(1+$A68)^$G$56))-$B$22)/$B$20) -> $232.07
A69: =$B$53-0.005 -> 9.18% | B69: =IF($A69<=B$67,NA(),((SUMPRODUCT($C$50:$G$50,1/(1+$A69)^$C$56:$G$56)+($G$50*(1+B$67)/($A69-B$67))*IF('Model Inputs'!$B$22="Year-End",1/(1+$A69)^5,1/(1+$A69)^$G$56))-$B$22)/$B$20) -> $159.68 | C69: =IF($A69<=C$67,NA(),((SUMPRODUCT($C$50:$G$50,1/(1+$A69)^$C$56:$G$56)+($G$50*(1+C$67)/($A69-C$67))*IF('Model Inputs'!$B$22="Year-End",1/(1+$A69)^5,1/(1+$A69)^$G$56))-$B$22)/$B$20) -> $169.27 | D69: =IF($A69<=D$67,NA(),((SUMPRODUCT($C$50:$G$50,1/(1+$A69)^$C$56:$G$56)+($G$50*(1+D$67)/($A69-D$67))*IF('Model Inputs'!$B$22="Year-End",1/(1+$A69)^5,1/(1+$A69)^$G$56))-$B$22)/$B$20) -> $180.41 | E69: =IF($A69<=E$67,NA(),((SUMPRODUCT($C$50:$G$50,1/(1+$A69)^$C$56:$G$56)+($G$50*(1+E$67)/($A69-E$67))*IF('Model Inputs'!$B$22="Year-End",1/(1+$A69)^5,1/(1+$A69)^$G$56))-$B$22)/$B$20) -> $193.51 | F69: =IF($A69<=F$67,NA(),((SUMPRODUCT($C$50:$G$50,1/(1+$A69)^$C$56:$G$56)+($G$50*(1+F$67)/($A69-F$67))*IF('Model Inputs'!$B$22="Year-End",1/(1+$A69)^5,1/(1+$A69)^$G$56))-$B$22)/$B$20) -> $209.14
A70: =$B$53 -> 9.68% | B70: =IF($A70<=B$67,NA(),((SUMPRODUCT($C$50:$G$50,1/(1+$A70)^$C$56:$G$56)+($G$50*(1+B$67)/($A70-B$67))*IF('Model Inputs'!$B$22="Year-End",1/(1+$A70)^5,1/(1+$A70)^$G$56))-$B$22)/$B$20) -> $148.85 | C70: =IF($A70<=C$67,NA(),((SUMPRODUCT($C$50:$G$50,1/(1+$A70)^$C$56:$G$56)+($G$50*(1+C$67)/($A70-C$67))*IF('Model Inputs'!$B$22="Year-End",1/(1+$A70)^5,1/(1+$A70)^$G$56))-$B$22)/$B$20) -> $157.05 | D70: =IF($A70<=D$67,NA(),((SUMPRODUCT($C$50:$G$50,1/(1+$A70)^$C$56:$G$56)+($G$50*(1+D$67)/($A70-D$67))*IF('Model Inputs'!$B$22="Year-End",1/(1+$A70)^5,1/(1+$A70)^$G$56))-$B$22)/$B$20) -> $166.46 | E70: =IF($A70<=E$67,NA(),((SUMPRODUCT($C$50:$G$50,1/(1+$A70)^$C$56:$G$56)+($G$50*(1+E$67)/($A70-E$67))*IF('Model Inputs'!$B$22="Year-End",1/(1+$A70)^5,1/(1+$A70)^$G$56))-$B$22)/$B$20) -> $177.40 | F70: =IF($A70<=F$67,NA(),((SUMPRODUCT($C$50:$G$50,1/(1+$A70)^$C$56:$G$56)+($G$50*(1+F$67)/($A70-F$67))*IF('Model Inputs'!$B$22="Year-End",1/(1+$A70)^5,1/(1+$A70)^$G$56))-$B$22)/$B$20) -> $190.27
A71: =$B$53+0.005 -> 10.18% | B71: =IF($A71<=B$67,NA(),((SUMPRODUCT($C$50:$G$50,1/(1+$A71)^$C$56:$G$56)+($G$50*(1+B$67)/($A71-B$67))*IF('Model Inputs'!$B$22="Year-End",1/(1+$A71)^5,1/(1+$A71)^$G$56))-$B$22)/$B$20) -> $139.36 | C71: =IF($A71<=C$67,NA(),((SUMPRODUCT($C$50:$G$50,1/(1+$A71)^$C$56:$G$56)+($G$50*(1+C$67)/($A71-C$67))*IF('Model Inputs'!$B$22="Year-End",1/(1+$A71)^5,1/(1+$A71)^$G$56))-$B$22)/$B$20) -> $146.42 | D71: =IF($A71<=D$67,NA(),((SUMPRODUCT($C$50:$G$50,1/(1+$A71)^$C$56:$G$56)+($G$50*(1+D$67)/($A71-D$67))*IF('Model Inputs'!$B$22="Year-End",1/(1+$A71)^5,1/(1+$A71)^$G$56))-$B$22)/$B$20) -> $154.47 | E71: =IF($A71<=E$67,NA(),((SUMPRODUCT($C$50:$G$50,1/(1+$A71)^$C$56:$G$56)+($G$50*(1+E$67)/($A71-E$67))*IF('Model Inputs'!$B$22="Year-End",1/(1+$A71)^5,1/(1+$A71)^$G$56))-$B$22)/$B$20) -> $163.72 | F71: =IF($A71<=F$67,NA(),((SUMPRODUCT($C$50:$G$50,1/(1+$A71)^$C$56:$G$56)+($G$50*(1+F$67)/($A71-F$67))*IF('Model Inputs'!$B$22="Year-End",1/(1+$A71)^5,1/(1+$A71)^$G$56))-$B$22)/$B$20) -> $174.46
A72: =$B$53+0.01 -> 10.68% | B72: =IF($A72<=B$67,NA(),((SUMPRODUCT($C$50:$G$50,1/(1+$A72)^$C$56:$G$56)+($G$50*(1+B$67)/($A72-B$67))*IF('Model Inputs'!$B$22="Year-End",1/(1+$A72)^5,1/(1+$A72)^$G$56))-$B$22)/$B$20) -> $130.98 | C72: =IF($A72<=C$67,NA(),((SUMPRODUCT($C$50:$G$50,1/(1+$A72)^$C$56:$G$56)+($G$50*(1+C$67)/($A72-C$67))*IF('Model Inputs'!$B$22="Year-End",1/(1+$A72)^5,1/(1+$A72)^$G$56))-$B$22)/$B$20) -> $137.11 | D72: =IF($A72<=D$67,NA(),((SUMPRODUCT($C$50:$G$50,1/(1+$A72)^$C$56:$G$56)+($G$50*(1+D$67)/($A72-D$67))*IF('Model Inputs'!$B$22="Year-End",1/(1+$A72)^5,1/(1+$A72)^$G$56))-$B$22)/$B$20) -> $144.05 | E72: =IF($A72<=E$67,NA(),((SUMPRODUCT($C$50:$G$50,1/(1+$A72)^$C$56:$G$56)+($G$50*(1+E$67)/($A72-E$67))*IF('Model Inputs'!$B$22="Year-End",1/(1+$A72)^5,1/(1+$A72)^$G$56))-$B$22)/$B$20) -> $151.95 | F72: =IF($A72<=F$67,NA(),((SUMPRODUCT($C$50:$G$50,1/(1+$A72)^$C$56:$G$56)+($G$50*(1+F$67)/($A72-F$67))*IF('Model Inputs'!$B$22="Year-End",1/(1+$A72)^5,1/(1+$A72)^$G$56))-$B$22)/$B$20) -> $161.03
A75: SENSITIVITY: IMPLIED SHARE PRICE - REVENUE GROWTH SHIFT vs EBIT MARGIN SHIFT
A77: Growth shift down / Margin shift across | B77: -2.0% | C77: -1.0% | D77: =0 -> 0 | E77: =0.01 -> +1.0% | F77: =0.02 -> +2.0%
A78: -2.0% | B78: =_xlfn.LET(_xlpm.gShift,$A78,_xlpm.mShift,B$77,_xlpm.growth,$B$29:$F$29+_xlpm.gShift,_xlpm.margin,$B$30:$F$30+_xlpm.mShift,_xlpm.rev,_xlfn.SCAN($B$41,_xlpm.growth,_xlfn.LAMBDA(_xlpm.a,_xlpm.b,_xlpm.a*(1+_xlpm.b))),_xlpm.prior,_xlfn.HSTACK($B$41,_xlfn.DROP(_xlpm.rev,,-1)),_xlpm.fcf,_xlpm.rev*_xlpm.margin*(1-$B$31:$F$31)+_xlpm.rev*$B$32:$F$32-_xlpm.rev*$B$33:$F$33-(_xlpm.rev-_xlpm.prior)*$B$34:$F$34,_xlpm.pv,SUM(_xlpm.fcf/(1+$B$53)^$C$56:$G$56),_xlpm.tv,_xlfn.TAKE(_xlpm.fcf,,-1)*(1+$B$54)/($B$53-$B$54)*IF('Model Inputs'!$B$22="Year-End",1/(1+$B$53)^5,1/(1+$B$53)^$G$56),IF($B$53<=$B$54,NA(),(_xlpm.pv+_xlpm.tv-$B$22)/$B$20)) -> $144.88 | C78: =_xlfn.LET(_xlpm.gShift,$A78,_xlpm.mShift,C$77,_xlpm.growth,$B$29:$F$29+_xlpm.gShift,_xlpm.margin,$B$30:$F$30+_xlpm.mShift,_xlpm.rev,_xlfn.SCAN($B$41,_xlpm.growth,_xlfn.LAMBDA(_xlpm.a,_xlpm.b,_xlpm.a*(1+_xlpm.b))),_xlpm.prior,_xlfn.HSTACK($B$41,_xlfn.DROP(_xlpm.rev,,-1)),_xlpm.fcf,_xlpm.rev*_xlpm.margin*(1-$B$31:$F$31)+_xlpm.rev*$B$32:$F$32-_xlpm.rev*$B$33:$F$33-(_xlpm.rev-_xlpm.prior)*$B$34:$F$34,_xlpm.pv,SUM(_xlpm.fcf/(1+$B$53)^$C$56:$G$56),_xlpm.tv,_xlfn.TAKE(_xlpm.fcf,,-1)*(1+$B$54)/($B$53-$B$54)*IF('Model Inputs'!$B$22="Year-End",1/(1+$B$53)^5,1/(1+$B$53)^$G$56),IF($B$53<=$B$54,NA(),(_xlpm.pv+_xlpm.tv-$B$22)/$B$20)) -> $148.91 | D78: =_xlfn.LET(_xlpm.gShift,$A78,_xlpm.mShift,D$77,_xlpm.growth,$B$29:$F$29+_xlpm.gShift,_xlpm.margin,$B$30:$F$30+_xlpm.mShift,_xlpm.rev,_xlfn.SCAN($B$41,_xlpm.growth,_xlfn.LAMBDA(_xlpm.a,_xlpm.b,_xlpm.a*(1+_xlpm.b))),_xlpm.prior,_xlfn.HSTACK($B$41,_xlfn.DROP(_xlpm.rev,,-1)),_xlpm.fcf,_xlpm.rev*_xlpm.margin*(1-$B$31:$F$31)+_xlpm.rev*$B$32:$F$32-_xlpm.rev*$B$33:$F$33-(_xlpm.rev-_xlpm.prior)*$B$34:$F$34,_xlpm.pv,SUM(_xlpm.fcf/(1+$B$53)^$C$56:$G$56),_xlpm.tv,_xlfn.TAKE(_xlpm.fcf,,-1)*(1+$B$54)/($B$53-$B$54)*IF('Model Inputs'!$B$22="Year-End",1/(1+$B$53)^5,1/(1+$B$53)^$G$56),IF($B$53<=$B$54,NA(),(_xlpm.pv+_xlpm.tv-$B$22)/$B$20)) -> $152.95 | E78: =_xlfn.LET(_xlpm.gShift,$A78,_xlpm.mShift,E$77,_xlpm.growth,$B$29:$F$29+_xlpm.gShift,_xlpm.margin,$B$30:$F$30+_xlpm.mShift,_xlpm.rev,_xlfn.SCAN($B$41,_xlpm.growth,_xlfn.LAMBDA(_xlpm.a,_xlpm.b,_xlpm.a*(1+_xlpm.b))),_xlpm.prior,_xlfn.HSTACK($B$41,_xlfn.DROP(_xlpm.rev,,-1)),_xlpm.fcf,_xlpm.rev*_xlpm.margin*(1-$B$31:$F$31)+_xlpm.rev*$B$32:$F$32-_xlpm.rev*$B$33:$F$33-(_xlpm.rev-_xlpm.prior)*$B$34:$F$34,_xlpm.pv,SUM(_xlpm.fcf/(1+$B$53)^$C$56:$G$56),_xlpm.tv,_xlfn.TAKE(_xlpm.fcf,,-1)*(1+$B$54)/($B$53-$B$54)*IF('Model Inputs'!$B$22="Year-End",1/(1+$B$53)^5,1/(1+$B$53)^$G$56),IF($B$53<=$B$54,NA(),(_xlpm.pv+_xlpm.tv-$B$22)/$B$20)) -> $156.98 | F78: =_xlfn.LET(_xlpm.gShift,$A78,_xlpm.mShift,F$77,_xlpm.growth,$B$29:$F$29+_xlpm.gShift,_xlpm.margin,$B$30:$F$30+_xlpm.mShift,_xlpm.rev,_xlfn.SCAN($B$41,_xlpm.growth,_xlfn.LAMBDA(_xlpm.a,_xlpm.b,_xlpm.a*(1+_xlpm.b))),_xlpm.prior,_xlfn.HSTACK($B$41,_xlfn.DROP(_xlpm.rev,,-1)),_xlpm.fcf,_xlpm.rev*_xlpm.margin*(1-$B$31:$F$31)+_xlpm.rev*$B$32:$F$32-_xlpm.rev*$B$33:$F$33-(_xlpm.rev-_xlpm.prior)*$B$34:$F$34,_xlpm.pv,SUM(_xlpm.fcf/(1+$B$53)^$C$56:$G$56),_xlpm.tv,_xlfn.TAKE(_xlpm.fcf,,-1)*(1+$B$54)/($B$53-$B$54)*IF('Model Inputs'!$B$22="Year-End",1/(1+$B$53)^5,1/(1+$B$53)^$G$56),IF($B$53<=$B$54,NA(),(_xlpm.pv+_xlpm.tv-$B$22)/$B$20)) -> $161.01
A79: -1.0% | B79: =_xlfn.LET(_xlpm.gShift,$A79,_xlpm.mShift,B$77,_xlpm.growth,$B$29:$F$29+_xlpm.gShift,_xlpm.margin,$B$30:$F$30+_xlpm.mShift,_xlpm.rev,_xlfn.SCAN($B$41,_xlpm.growth,_xlfn.LAMBDA(_xlpm.a,_xlpm.b,_xlpm.a*(1+_xlpm.b))),_xlpm.prior,_xlfn.HSTACK($B$41,_xlfn.DROP(_xlpm.rev,,-1)),_xlpm.fcf,_xlpm.rev*_xlpm.margin*(1-$B$31:$F$31)+_xlpm.rev*$B$32:$F$32-_xlpm.rev*$B$33:$F$33-(_xlpm.rev-_xlpm.prior)*$B$34:$F$34,_xlpm.pv,SUM(_xlpm.fcf/(1+$B$53)^$C$56:$G$56),_xlpm.tv,_xlfn.TAKE(_xlpm.fcf,,-1)*(1+$B$54)/($B$53-$B$54)*IF('Model Inputs'!$B$22="Year-End",1/(1+$B$53)^5,1/(1+$B$53)^$G$56),IF($B$53<=$B$54,NA(),(_xlpm.pv+_xlpm.tv-$B$22)/$B$20)) -> $151.18 | C79: =_xlfn.LET(_xlpm.gShift,$A79,_xlpm.mShift,C$77,_xlpm.growth,$B$29:$F$29+_xlpm.gShift,_xlpm.margin,$B$30:$F$30+_xlpm.mShift,_xlpm.rev,_xlfn.SCAN($B$41,_xlpm.growth,_xlfn.LAMBDA(_xlpm.a,_xlpm.b,_xlpm.a*(1+_xlpm.b))),_xlpm.prior,_xlfn.HSTACK($B$41,_xlfn.DROP(_xlpm.rev,,-1)),_xlpm.fcf,_xlpm.rev*_xlpm.margin*(1-$B$31:$F$31)+_xlpm.rev*$B$32:$F$32-_xlpm.rev*$B$33:$F$33-(_xlpm.rev-_xlpm.prior)*$B$34:$F$34,_xlpm.pv,SUM(_xlpm.fcf/(1+$B$53)^$C$56:$G$56),_xlpm.tv,_xlfn.TAKE(_xlpm.fcf,,-1)*(1+$B$54)/($B$53-$B$54)*IF('Model Inputs'!$B$22="Year-End",1/(1+$B$53)^5,1/(1+$B$53)^$G$56),IF($B$53<=$B$54,NA(),(_xlpm.pv+_xlpm.tv-$B$22)/$B$20)) -> $155.38 | D79: =_xlfn.LET(_xlpm.gShift,$A79,_xlpm.mShift,D$77,_xlpm.growth,$B$29:$F$29+_xlpm.gShift,_xlpm.margin,$B$30:$F$30+_xlpm.mShift,_xlpm.rev,_xlfn.SCAN($B$41,_xlpm.growth,_xlfn.LAMBDA(_xlpm.a,_xlpm.b,_xlpm.a*(1+_xlpm.b))),_xlpm.prior,_xlfn.HSTACK($B$41,_xlfn.DROP(_xlpm.rev,,-1)),_xlpm.fcf,_xlpm.rev*_xlpm.margin*(1-$B$31:$F$31)+_xlpm.rev*$B$32:$F$32-_xlpm.rev*$B$33:$F$33-(_xlpm.rev-_xlpm.prior)*$B$34:$F$34,_xlpm.pv,SUM(_xlpm.fcf/(1+$B$53)^$C$56:$G$56),_xlpm.tv,_xlfn.TAKE(_xlpm.fcf,,-1)*(1+$B$54)/($B$53-$B$54)*IF('Model Inputs'!$B$22="Year-End",1/(1+$B$53)^5,1/(1+$B$53)^$G$56),IF($B$53<=$B$54,NA(),(_xlpm.pv+_xlpm.tv-$B$22)/$B$20)) -> $159.59 | E79: =_xlfn.LET(_xlpm.gShift,$A79,_xlpm.mShift,E$77,_xlpm.growth,$B$29:$F$29+_xlpm.gShift,_xlpm.margin,$B$30:$F$30+_xlpm.mShift,_xlpm.rev,_xlfn.SCAN($B$41,_xlpm.growth,_xlfn.LAMBDA(_xlpm.a,_xlpm.b,_xlpm.a*(1+_xlpm.b))),_xlpm.prior,_xlfn.HSTACK($B$41,_xlfn.DROP(_xlpm.rev,,-1)),_xlpm.fcf,_xlpm.rev*_xlpm.margin*(1-$B$31:$F$31)+_xlpm.rev*$B$32:$F$32-_xlpm.rev*$B$33:$F$33-(_xlpm.rev-_xlpm.prior)*$B$34:$F$34,_xlpm.pv,SUM(_xlpm.fcf/(1+$B$53)^$C$56:$G$56),_xlpm.tv,_xlfn.TAKE(_xlpm.fcf,,-1)*(1+$B$54)/($B$53-$B$54)*IF('Model Inputs'!$B$22="Year-End",1/(1+$B$53)^5,1/(1+$B$53)^$G$56),IF($B$53<=$B$54,NA(),(_xlpm.pv+_xlpm.tv-$B$22)/$B$20)) -> $163.79 | F79: =_xlfn.LET(_xlpm.gShift,$A79,_xlpm.mShift,F$77,_xlpm.growth,$B$29:$F$29+_xlpm.gShift,_xlpm.margin,$B$30:$F$30+_xlpm.mShift,_xlpm.rev,_xlfn.SCAN($B$41,_xlpm.growth,_xlfn.LAMBDA(_xlpm.a,_xlpm.b,_xlpm.a*(1+_xlpm.b))),_xlpm.prior,_xlfn.HSTACK($B$41,_xlfn.DROP(_xlpm.rev,,-1)),_xlpm.fcf,_xlpm.rev*_xlpm.margin*(1-$B$31:$F$31)+_xlpm.rev*$B$32:$F$32-_xlpm.rev*$B$33:$F$33-(_xlpm.rev-_xlpm.prior)*$B$34:$F$34,_xlpm.pv,SUM(_xlpm.fcf/(1+$B$53)^$C$56:$G$56),_xlpm.tv,_xlfn.TAKE(_xlpm.fcf,,-1)*(1+$B$54)/($B$53-$B$54)*IF('Model Inputs'!$B$22="Year-End",1/(1+$B$53)^5,1/(1+$B$53)^$G$56),IF($B$53<=$B$54,NA(),(_xlpm.pv+_xlpm.tv-$B$22)/$B$20)) -> $168.00
A80: =0 -> 0 | B80: =_xlfn.LET(_xlpm.gShift,$A80,_xlpm.mShift,B$77,_xlpm.growth,$B$29:$F$29+_xlpm.gShift,_xlpm.margin,$B$30:$F$30+_xlpm.mShift,_xlpm.rev,_xlfn.SCAN($B$41,_xlpm.growth,_xlfn.LAMBDA(_xlpm.a,_xlpm.b,_xlpm.a*(1+_xlpm.b))),_xlpm.prior,_xlfn.HSTACK($B$41,_xlfn.DROP(_xlpm.rev,,-1)),_xlpm.fcf,_xlpm.rev*_xlpm.margin*(1-$B$31:$F$31)+_xlpm.rev*$B$32:$F$32-_xlpm.rev*$B$33:$F$33-(_xlpm.rev-_xlpm.prior)*$B$34:$F$34,_xlpm.pv,SUM(_xlpm.fcf/(1+$B$53)^$C$56:$G$56),_xlpm.tv,_xlfn.TAKE(_xlpm.fcf,,-1)*(1+$B$54)/($B$53-$B$54)*IF('Model Inputs'!$B$22="Year-End",1/(1+$B$53)^5,1/(1+$B$53)^$G$56),IF($B$53<=$B$54,NA(),(_xlpm.pv+_xlpm.tv-$B$22)/$B$20)) -> $157.69 | C80: =_xlfn.LET(_xlpm.gShift,$A80,_xlpm.mShift,C$77,_xlpm.growth,$B$29:$F$29+_xlpm.gShift,_xlpm.margin,$B$30:$F$30+_xlpm.mShift,_xlpm.rev,_xlfn.SCAN($B$41,_xlpm.growth,_xlfn.LAMBDA(_xlpm.a,_xlpm.b,_xlpm.a*(1+_xlpm.b))),_xlpm.prior,_xlfn.HSTACK($B$41,_xlfn.DROP(_xlpm.rev,,-1)),_xlpm.fcf,_xlpm.rev*_xlpm.margin*(1-$B$31:$F$31)+_xlpm.rev*$B$32:$F$32-_xlpm.rev*$B$33:$F$33-(_xlpm.rev-_xlpm.prior)*$B$34:$F$34,_xlpm.pv,SUM(_xlpm.fcf/(1+$B$53)^$C$56:$G$56),_xlpm.tv,_xlfn.TAKE(_xlpm.fcf,,-1)*(1+$B$54)/($B$53-$B$54)*IF('Model Inputs'!$B$22="Year-End",1/(1+$B$53)^5,1/(1+$B$53)^$G$56),IF($B$53<=$B$54,NA(),(_xlpm.pv+_xlpm.tv-$B$22)/$B$20)) -> $162.08 | D80: =_xlfn.LET(_xlpm.gShift,$A80,_xlpm.mShift,D$77,_xlpm.growth,$B$29:$F$29+_xlpm.gShift,_xlpm.margin,$B$30:$F$30+_xlpm.mShift,_xlpm.rev,_xlfn.SCAN($B$41,_xlpm.growth,_xlfn.LAMBDA(_xlpm.a,_xlpm.b,_xlpm.a*(1+_xlpm.b))),_xlpm.prior,_xlfn.HSTACK($B$41,_xlfn.DROP(_xlpm.rev,,-1)),_xlpm.fcf,_xlpm.rev*_xlpm.margin*(1-$B$31:$F$31)+_xlpm.rev*$B$32:$F$32-_xlpm.rev*$B$33:$F$33-(_xlpm.rev-_xlpm.prior)*$B$34:$F$34,_xlpm.pv,SUM(_xlpm.fcf/(1+$B$53)^$C$56:$G$56),_xlpm.tv,_xlfn.TAKE(_xlpm.fcf,,-1)*(1+$B$54)/($B$53-$B$54)*IF('Model Inputs'!$B$22="Year-End",1/(1+$B$53)^5,1/(1+$B$53)^$G$56),IF($B$53<=$B$54,NA(),(_xlpm.pv+_xlpm.tv-$B$22)/$B$20)) -> $166.46 | E80: =_xlfn.LET(_xlpm.gShift,$A80,_xlpm.mShift,E$77,_xlpm.growth,$B$29:$F$29+_xlpm.gShift,_xlpm.margin,$B$30:$F$30+_xlpm.mShift,_xlpm.rev,_xlfn.SCAN($B$41,_xlpm.growth,_xlfn.LAMBDA(_xlpm.a,_xlpm.b,_xlpm.a*(1+_xlpm.b))),_xlpm.prior,_xlfn.HSTACK($B$41,_xlfn.DROP(_xlpm.rev,,-1)),_xlpm.fcf,_xlpm.rev*_xlpm.margin*(1-$B$31:$F$31)+_xlpm.rev*$B$32:$F$32-_xlpm.rev*$B$33:$F$33-(_xlpm.rev-_xlpm.prior)*$B$34:$F$34,_xlpm.pv,SUM(_xlpm.fcf/(1+$B$53)^$C$56:$G$56),_xlpm.tv,_xlfn.TAKE(_xlpm.fcf,,-1)*(1+$B$54)/($B$53-$B$54)*IF('Model Inputs'!$B$22="Year-End",1/(1+$B$53)^5,1/(1+$B$53)^$G$56),IF($B$53<=$B$54,NA(),(_xlpm.pv+_xlpm.tv-$B$22)/$B$20)) -> $170.85 | F80: =_xlfn.LET(_xlpm.gShift,$A80,_xlpm.mShift,F$77,_xlpm.growth,$B$29:$F$29+_xlpm.gShift,_xlpm.margin,$B$30:$F$30+_xlpm.mShift,_xlpm.rev,_xlfn.SCAN($B$41,_xlpm.growth,_xlfn.LAMBDA(_xlpm.a,_xlpm.b,_xlpm.a*(1+_xlpm.b))),_xlpm.prior,_xlfn.HSTACK($B$41,_xlfn.DROP(_xlpm.rev,,-1)),_xlpm.fcf,_xlpm.rev*_xlpm.margin*(1-$B$31:$F$31)+_xlpm.rev*$B$32:$F$32-_xlpm.rev*$B$33:$F$33-(_xlpm.rev-_xlpm.prior)*$B$34:$F$34,_xlpm.pv,SUM(_xlpm.fcf/(1+$B$53)^$C$56:$G$56),_xlpm.tv,_xlfn.TAKE(_xlpm.fcf,,-1)*(1+$B$54)/($B$53-$B$54)*IF('Model Inputs'!$B$22="Year-End",1/(1+$B$53)^5,1/(1+$B$53)^$G$56),IF($B$53<=$B$54,NA(),(_xlpm.pv+_xlpm.tv-$B$22)/$B$20)) -> $175.23
A81: =0.01 -> +1.0% | B81: =_xlfn.LET(_xlpm.gShift,$A81,_xlpm.mShift,B$77,_xlpm.growth,$B$29:$F$29+_xlpm.gShift,_xlpm.margin,$B$30:$F$30+_xlpm.mShift,_xlpm.rev,_xlfn.SCAN($B$41,_xlpm.growth,_xlfn.LAMBDA(_xlpm.a,_xlpm.b,_xlpm.a*(1+_xlpm.b))),_xlpm.prior,_xlfn.HSTACK($B$41,_xlfn.DROP(_xlpm.rev,,-1)),_xlpm.fcf,_xlpm.rev*_xlpm.margin*(1-$B$31:$F$31)+_xlpm.rev*$B$32:$F$32-_xlpm.rev*$B$33:$F$33-(_xlpm.rev-_xlpm.prior)*$B$34:$F$34,_xlpm.pv,SUM(_xlpm.fcf/(1+$B$53)^$C$56:$G$56),_xlpm.tv,_xlfn.TAKE(_xlpm.fcf,,-1)*(1+$B$54)/($B$53-$B$54)*IF('Model Inputs'!$B$22="Year-End",1/(1+$B$53)^5,1/(1+$B$53)^$G$56),IF($B$53<=$B$54,NA(),(_xlpm.pv+_xlpm.tv-$B$22)/$B$20)) -> $164.44 | C81: =_xlfn.LET(_xlpm.gShift,$A81,_xlpm.mShift,C$77,_xlpm.growth,$B$29:$F$29+_xlpm.gShift,_xlpm.margin,$B$30:$F$30+_xlpm.mShift,_xlpm.rev,_xlfn.SCAN($B$41,_xlpm.growth,_xlfn.LAMBDA(_xlpm.a,_xlpm.b,_xlpm.a*(1+_xlpm.b))),_xlpm.prior,_xlfn.HSTACK($B$41,_xlfn.DROP(_xlpm.rev,,-1)),_xlpm.fcf,_xlpm.rev*_xlpm.margin*(1-$B$31:$F$31)+_xlpm.rev*$B$32:$F$32-_xlpm.rev*$B$33:$F$33-(_xlpm.rev-_xlpm.prior)*$B$34:$F$34,_xlpm.pv,SUM(_xlpm.fcf/(1+$B$53)^$C$56:$G$56),_xlpm.tv,_xlfn.TAKE(_xlpm.fcf,,-1)*(1+$B$54)/($B$53-$B$54)*IF('Model Inputs'!$B$22="Year-End",1/(1+$B$53)^5,1/(1+$B$53)^$G$56),IF($B$53<=$B$54,NA(),(_xlpm.pv+_xlpm.tv-$B$22)/$B$20)) -> $169.01 | D81: =_xlfn.LET(_xlpm.gShift,$A81,_xlpm.mShift,D$77,_xlpm.growth,$B$29:$F$29+_xlpm.gShift,_xlpm.margin,$B$30:$F$30+_xlpm.mShift,_xlpm.rev,_xlfn.SCAN($B$41,_xlpm.growth,_xlfn.LAMBDA(_xlpm.a,_xlpm.b,_xlpm.a*(1+_xlpm.b))),_xlpm.prior,_xlfn.HSTACK($B$41,_xlfn.DROP(_xlpm.rev,,-1)),_xlpm.fcf,_xlpm.rev*_xlpm.margin*(1-$B$31:$F$31)+_xlpm.rev*$B$32:$F$32-_xlpm.rev*$B$33:$F$33-(_xlpm.rev-_xlpm.prior)*$B$34:$F$34,_xlpm.pv,SUM(_xlpm.fcf/(1+$B$53)^$C$56:$G$56),_xlpm.tv,_xlfn.TAKE(_xlpm.fcf,,-1)*(1+$B$54)/($B$53-$B$54)*IF('Model Inputs'!$B$22="Year-End",1/(1+$B$53)^5,1/(1+$B$53)^$G$56),IF($B$53<=$B$54,NA(),(_xlpm.pv+_xlpm.tv-$B$22)/$B$20)) -> $173.58 | E81: =_xlfn.LET(_xlpm.gShift,$A81,_xlpm.mShift,E$77,_xlpm.growth,$B$29:$F$29+_xlpm.gShift,_xlpm.margin,$B$30:$F$30+_xlpm.mShift,_xlpm.rev,_xlfn.SCAN($B$41,_xlpm.growth,_xlfn.LAMBDA(_xlpm.a,_xlpm.b,_xlpm.a*(1+_xlpm.b))),_xlpm.prior,_xlfn.HSTACK($B$41,_xlfn.DROP(_xlpm.rev,,-1)),_xlpm.fcf,_xlpm.rev*_xlpm.margin*(1-$B$31:$F$31)+_xlpm.rev*$B$32:$F$32-_xlpm.rev*$B$33:$F$33-(_xlpm.rev-_xlpm.prior)*$B$34:$F$34,_xlpm.pv,SUM(_xlpm.fcf/(1+$B$53)^$C$56:$G$56),_xlpm.tv,_xlfn.TAKE(_xlpm.fcf,,-1)*(1+$B$54)/($B$53-$B$54)*IF('Model Inputs'!$B$22="Year-End",1/(1+$B$53)^5,1/(1+$B$53)^$G$56),IF($B$53<=$B$54,NA(),(_xlpm.pv+_xlpm.tv-$B$22)/$B$20)) -> $178.15 | F81: =_xlfn.LET(_xlpm.gShift,$A81,_xlpm.mShift,F$77,_xlpm.growth,$B$29:$F$29+_xlpm.gShift,_xlpm.margin,$B$30:$F$30+_xlpm.mShift,_xlpm.rev,_xlfn.SCAN($B$41,_xlpm.growth,_xlfn.LAMBDA(_xlpm.a,_xlpm.b,_xlpm.a*(1+_xlpm.b))),_xlpm.prior,_xlfn.HSTACK($B$41,_xlfn.DROP(_xlpm.rev,,-1)),_xlpm.fcf,_xlpm.rev*_xlpm.margin*(1-$B$31:$F$31)+_xlpm.rev*$B$32:$F$32-_xlpm.rev*$B$33:$F$33-(_xlpm.rev-_xlpm.prior)*$B$34:$F$34,_xlpm.pv,SUM(_xlpm.fcf/(1+$B$53)^$C$56:$G$56),_xlpm.tv,_xlfn.TAKE(_xlpm.fcf,,-1)*(1+$B$54)/($B$53-$B$54)*IF('Model Inputs'!$B$22="Year-End",1/(1+$B$53)^5,1/(1+$B$53)^$G$56),IF($B$53<=$B$54,NA(),(_xlpm.pv+_xlpm.tv-$B$22)/$B$20)) -> $182.72
A82: =0.02 -> +2.0% | B82: =_xlfn.LET(_xlpm.gShift,$A82,_xlpm.mShift,B$77,_xlpm.growth,$B$29:$F$29+_xlpm.gShift,_xlpm.margin,$B$30:$F$30+_xlpm.mShift,_xlpm.rev,_xlfn.SCAN($B$41,_xlpm.growth,_xlfn.LAMBDA(_xlpm.a,_xlpm.b,_xlpm.a*(1+_xlpm.b))),_xlpm.prior,_xlfn.HSTACK($B$41,_xlfn.DROP(_xlpm.rev,,-1)),_xlpm.fcf,_xlpm.rev*_xlpm.margin*(1-$B$31:$F$31)+_xlpm.rev*$B$32:$F$32-_xlpm.rev*$B$33:$F$33-(_xlpm.rev-_xlpm.prior)*$B$34:$F$34,_xlpm.pv,SUM(_xlpm.fcf/(1+$B$53)^$C$56:$G$56),_xlpm.tv,_xlfn.TAKE(_xlpm.fcf,,-1)*(1+$B$54)/($B$53-$B$54)*IF('Model Inputs'!$B$22="Year-End",1/(1+$B$53)^5,1/(1+$B$53)^$G$56),IF($B$53<=$B$54,NA(),(_xlpm.pv+_xlpm.tv-$B$22)/$B$20)) -> $171.43 | C82: =_xlfn.LET(_xlpm.gShift,$A82,_xlpm.mShift,C$77,_xlpm.growth,$B$29:$F$29+_xlpm.gShift,_xlpm.margin,$B$30:$F$30+_xlpm.mShift,_xlpm.rev,_xlfn.SCAN($B$41,_xlpm.growth,_xlfn.LAMBDA(_xlpm.a,_xlpm.b,_xlpm.a*(1+_xlpm.b))),_xlpm.prior,_xlfn.HSTACK($B$41,_xlfn.DROP(_xlpm.rev,,-1)),_xlpm.fcf,_xlpm.rev*_xlpm.margin*(1-$B$31:$F$31)+_xlpm.rev*$B$32:$F$32-_xlpm.rev*$B$33:$F$33-(_xlpm.rev-_xlpm.prior)*$B$34:$F$34,_xlpm.pv,SUM(_xlpm.fcf/(1+$B$53)^$C$56:$G$56),_xlpm.tv,_xlfn.TAKE(_xlpm.fcf,,-1)*(1+$B$54)/($B$53-$B$54)*IF('Model Inputs'!$B$22="Year-End",1/(1+$B$53)^5,1/(1+$B$53)^$G$56),IF($B$53<=$B$54,NA(),(_xlpm.pv+_xlpm.tv-$B$22)/$B$20)) -> $176.19 | D82: =_xlfn.LET(_xlpm.gShift,$A82,_xlpm.mShift,D$77,_xlpm.growth,$B$29:$F$29+_xlpm.gShift,_xlpm.margin,$B$30:$F$30+_xlpm.mShift,_xlpm.rev,_xlfn.SCAN($B$41,_xlpm.growth,_xlfn.LAMBDA(_xlpm.a,_xlpm.b,_xlpm.a*(1+_xlpm.b))),_xlpm.prior,_xlfn.HSTACK($B$41,_xlfn.DROP(_xlpm.rev,,-1)),_xlpm.fcf,_xlpm.rev*_xlpm.margin*(1-$B$31:$F$31)+_xlpm.rev*$B$32:$F$32-_xlpm.rev*$B$33:$F$33-(_xlpm.rev-_xlpm.prior)*$B$34:$F$34,_xlpm.pv,SUM(_xlpm.fcf/(1+$B$53)^$C$56:$G$56),_xlpm.tv,_xlfn.TAKE(_xlpm.fcf,,-1)*(1+$B$54)/($B$53-$B$54)*IF('Model Inputs'!$B$22="Year-End",1/(1+$B$53)^5,1/(1+$B$53)^$G$56),IF($B$53<=$B$54,NA(),(_xlpm.pv+_xlpm.tv-$B$22)/$B$20)) -> $180.95 | E82: =_xlfn.LET(_xlpm.gShift,$A82,_xlpm.mShift,E$77,_xlpm.growth,$B$29:$F$29+_xlpm.gShift,_xlpm.margin,$B$30:$F$30+_xlpm.mShift,_xlpm.rev,_xlfn.SCAN($B$41,_xlpm.growth,_xlfn.LAMBDA(_xlpm.a,_xlpm.b,_xlpm.a*(1+_xlpm.b))),_xlpm.prior,_xlfn.HSTACK($B$41,_xlfn.DROP(_xlpm.rev,,-1)),_xlpm.fcf,_xlpm.rev*_xlpm.margin*(1-$B$31:$F$31)+_xlpm.rev*$B$32:$F$32-_xlpm.rev*$B$33:$F$33-(_xlpm.rev-_xlpm.prior)*$B$34:$F$34,_xlpm.pv,SUM(_xlpm.fcf/(1+$B$53)^$C$56:$G$56),_xlpm.tv,_xlfn.TAKE(_xlpm.fcf,,-1)*(1+$B$54)/($B$53-$B$54)*IF('Model Inputs'!$B$22="Year-End",1/(1+$B$53)^5,1/(1+$B$53)^$G$56),IF($B$53<=$B$54,NA(),(_xlpm.pv+_xlpm.tv-$B$22)/$B$20)) -> $185.71 | F82: =_xlfn.LET(_xlpm.gShift,$A82,_xlpm.mShift,F$77,_xlpm.growth,$B$29:$F$29+_xlpm.gShift,_xlpm.margin,$B$30:$F$30+_xlpm.mShift,_xlpm.rev,_xlfn.SCAN($B$41,_xlpm.growth,_xlfn.LAMBDA(_xlpm.a,_xlpm.b,_xlpm.a*(1+_xlpm.b))),_xlpm.prior,_xlfn.HSTACK($B$41,_xlfn.DROP(_xlpm.rev,,-1)),_xlpm.fcf,_xlpm.rev*_xlpm.margin*(1-$B$31:$F$31)+_xlpm.rev*$B$32:$F$32-_xlpm.rev*$B$33:$F$33-(_xlpm.rev-_xlpm.prior)*$B$34:$F$34,_xlpm.pv,SUM(_xlpm.fcf/(1+$B$53)^$C$56:$G$56),_xlpm.tv,_xlfn.TAKE(_xlpm.fcf,,-1)*(1+$B$54)/($B$53-$B$54)*IF('Model Inputs'!$B$22="Year-End",1/(1+$B$53)^5,1/(1+$B$53)^$G$56),IF($B$53<=$B$54,NA(),(_xlpm.pv+_xlpm.tv-$B$22)/$B$20)) -> $190.47

Sheet Model Inputs
A1: Dynamic DCF Model Inputs & Controls
A3: Ticker | B3: =DCF!A3 -> AAPL
A4: Valuation Date | B4: =DCF!B3 -> 2026-04-29
A6: Manual / Override Inputs
A7: Current Share Price ($) | B7: 0 | C7: =IF(B7=0,FALSE,TRUE) -> FALSE | D7: Used when StockInformation Previous Close is blank or override is TRUE.
A8: Diluted Shares | B8: 0 | C8: =IF(B8=0,FALSE,TRUE) -> FALSE | D8: Fallback to latest diluted weighted average shares or EDGAR shares outstanding.
A9: Base Revenue ($) | B9: 0 | C9: FALSE | D9: Fallback if revenue query is blank; current AMD FY2025 revenue inferred from SEC filing.
A10: Base EBIT / Operating Income ($) | B10: 0 | C10: FALSE | D10: Fallback if Operating Income query is blank.
A11: D&A (% Revenue) | B11: 0% | C11: FALSE | D11: Fallback because current query often returns stale D&A. Edit after adding a clean cash flow query.
A12: CapEx ($) | B12: 0 | C12: FALSE | D12: Fallback if CapEx query is blank or stale.
A13: Cash & Equivalents ($) | B13: 0 | C13: FALSE | D13: Fallback if balance sheet cash query is blank.
A14: Gross Debt ($) | B14: 0 | C14: FALSE | D14: Override is TRUE because the current query appears to miss current debt.
A15: Normalized Cash Tax Rate | B15: 0% | C15: FALSE | D15: Fallback if actual tax is negative/unusual.
A16: Beta | B16: 0 | C16: FALSE | D16: Manual beta fallback if market-data beta is unavailable.
A17: Risk-Free Rate | B17: 0% | C17: FALSE | D17: Fallback if 10Y Treasury query is blank.
A18: Equity Risk Premium | B18: 5% | C18: TRUE | D18: Manual market assumption.
A19: Pre-Tax Cost of Debt | B19: 0% | C19: FALSE | D19: Fallback if debt cost query is negative or implausibly high.
A20: NWC (% of Change in Revenue) | B20: =0.03 -> 3.00% | C20: Manual operating working capital assumption.
A21: Terminal Growth | B21: =0.03 -> 3.00% | C21: Manual long-term nominal growth assumption.
A22: Terminal Value Discount Timing | B22: Year-End | C22: Manual | D22: Use Mid-Year or Year-End; terminal value and sensitivities follow this setting.
A23: NWC Forecast Method | B23: Manual % of Revenue Change | C23: Manual | D23: Working Capital sheet provides actual operating NWC cross-check.
A24: Controlled Model Outputs
A25: Current Share Price ($) | B25: =_xlfn.LET(_xlpm.raw,IFERROR('Data Queries'!E2,0),_xlpm.q,IFERROR(_xlfn.NUMBERVALUE(_xlpm.raw),0),IF(AND($C$7,B7<>0),B7,IF(_xlpm.q>0,_xlpm.q,B7))) -> $270.71 | C25: StockInformation Previous Close, else manual B7 | D25: =IF(B25>0,"OK","MISSING") -> OK
A26: Diluted Shares | B26: =_xlfn.LET(_xlpm.dil,IFERROR(_xlfn.XLOOKUP("*Shares*Diluted*",EDGAR_IncomeStatement[Line Item],EDGAR_IncomeStatement[Value],0,2),0),_xlpm.so,IFERROR(INDEX(EDGAR_SharesOutstanding[Shares Outstanding],1),0),IF(AND($C$8,B8<>0),B8,IF(_xlpm.dil>0,_xlpm.dil,IF(_xlpm.so>0,_xlpm.so,B8)))) -> 15,004,697,000 | C26: Diluted weighted average shares, then EDGAR shares outstanding, then manual B8 | D26: =IF(B26>0,"OK","MISSING") -> OK
A27: Market Cap ($) | B27: =B25*IF(B40>0,B40,B26) -> $4,000,106,520,630 | C27: Price x current shares outstanding; falls back to diluted shares if needed | D27: =IF(B27>0,"OK","MISSING") -> OK
A28: Base Revenue ($) | B28: =_xlfn.LET(_xlpm.rev,IFERROR(_xlfn.XLOOKUP("Total Revenue",EDGAR_IncomeStatement[Line Item],EDGAR_IncomeStatement[Value],0,0),0),_xlpm.gross,IFERROR(_xlfn.XLOOKUP("Gross Profit",EDGAR_IncomeStatement[Line Item],EDGAR_IncomeStatement[Value],0,0),0),_xlpm.cogs,IFERROR(_xlfn.XLOOKUP("Cost of Goods & Services Sold",EDGAR_IncomeStatement[Line Item],EDGAR_IncomeStatement[Value],0,0),0),_xlpm.costrev,IFERROR(_xlfn.XLOOKUP("Cost of Revenue",EDGAR_IncomeStatement[Line Item],EDGAR_IncomeStatement[Value],0,0),0),_xlpm.alt,_xlpm.gross+MAX(_xlpm.cogs,_xlpm.costrev),IF(AND($C$9,B9<>0),B9,IF(_xlpm.rev>0,_xlpm.rev,IF(_xlpm.alt>0,_xlpm.alt,B9)))) -> $416,161,000,000 | C28: Total Revenue, or Gross Profit + Cost of Revenue, else manual B9 | D28: =_xlfn.LET(_xlpm.rev,IFERROR(_xlfn.XLOOKUP("Total Revenue",EDGAR_IncomeStatement[Line Item],EDGAR_IncomeStatement[Value],0,0),0),_xlpm.gross,IFERROR(_xlfn.XLOOKUP("Gross Profit",EDGAR_IncomeStatement[Line Item],EDGAR_IncomeStatement[Value],0,0),0),_xlpm.cogs,IFERROR(_xlfn.XLOOKUP("Cost of Goods & Services Sold",EDGAR_IncomeStatement[Line Item],EDGAR_IncomeStatement[Value],0,0),0),_xlpm.costrev,IFERROR(_xlfn.XLOOKUP("Cost of Revenue",EDGAR_IncomeStatement[Line Item],EDGAR_IncomeStatement[Value],0,0),0),_xlpm.alt,_xlpm.gross+MAX(_xlpm.cogs,_xlpm.costrev),IF(AND($C$9,B9<>""),"OVERRIDE",IF(_xlpm.rev>0,"OK",IF(_xlpm.alt>0,"INFERRED","FALLBACK")))) -> OK
A29: Base EBIT / Operating Income ($) | B29: =_xlfn.LET(_xlpm.q,IFERROR(_xlfn.XLOOKUP("Operating Income (Loss)",EDGAR_IncomeStatement[Line Item],EDGAR_IncomeStatement[Value],0,0),0),IF(AND($C$10,B10<>0),B10,IF(_xlpm.q<>0,_xlpm.q,B10))) -> $133,050,000,000 | C29: Operating Income (Loss), else manual B10 | D29: =IF(B29<>0,"OK","MISSING") -> OK
A30: Base EBIT Margin | B30: =IFERROR(B29/B28,0) -> 31.97% | C30: Operating income / revenue | D30: =IF(B30>0,"OK","CHECK") -> OK
A31: Normalized Cash Tax Rate | B31: =_xlfn.LET(_xlpm.pbt,IFERROR(_xlfn.XLOOKUP("Income Before Tax",EDGAR_IncomeStatement[Line Item],EDGAR_IncomeStatement[Value],0,0),0),_xlpm.tax,IFERROR(_xlfn.XLOOKUP("Income Tax Expense (Benefit)",EDGAR_IncomeStatement[Line Item],EDGAR_IncomeStatement[Value],0,0),0),IF(AND($C$15,B15<>0),B15,IF(AND(_xlpm.pbt>0,_xlpm.tax>0,_xlpm.tax/_xlpm.pbt<0.4),_xlpm.tax/_xlpm.pbt,B15))) -> 15.61% | C31: Actual tax/PBT if normal, else manual B15 | D31: =IF(AND(B31>0,B31<0.4),"OK","CHECK") -> OK
A32: D&A (% Revenue) | B32: =_xlfn.LET(_xlpm.val,IFERROR(_xlfn.XLOOKUP("*Depreciation*",EDGAR_StatementOfCashFlows[Line Item],EDGAR_StatementOfCashFlows[Value (USD)],0,2),0),_xlpm.fy,IFERROR(_xlfn.XLOOKUP("*Depreciation*",EDGAR_StatementOfCashFlows[Line Item],EDGAR_StatementOfCashFlows[FY],0,2),0),_xlpm.manual,B11,IF(AND($C$11,_xlpm.manual<>0),_xlpm.manual,IF(AND(_xlpm.val>0,_xlpm.fy=$B$39,$B$28>0),_xlpm.val/$B$28,_xlpm.manual))) -> 2.81% | C32: Current-year D&A if fresh; otherwise manual B11 | D32: =IF(AND(B32>0,B32<0.3),"OK","CHECK") -> OK
A33: CapEx (% Revenue) | B33: =_xlfn.LET(_xlpm.val,IFERROR(_xlfn.XLOOKUP("Capital Expenditures",EDGAR_StatementOfCashFlows[Line Item],EDGAR_StatementOfCashFlows[Value (USD)],0,0),0),_xlpm.fy,IFERROR(_xlfn.XLOOKUP("Capital Expenditures",EDGAR_StatementOfCashFlows[Line Item],EDGAR_StatementOfCashFlows[FY],0,0),0),_xlpm.manual,IFERROR(B12/$B$28,0),IF(AND($C$12,B12<>0),_xlpm.manual,IF(AND(_xlpm.val<>0,_xlpm.fy=$B$39,$B$28>0),ABS(_xlpm.val)/$B$28,_xlpm.manual))) -> 3.06% | C33: Current-year CapEx / revenue, else manual B12 / revenue | D33: =IF(AND(B33>0,B33<0.3),"OK","CHECK") -> OK
A34: Cash & Equivalents ($) | B34: =_xlfn.LET(_xlpm.q,IFERROR(_xlfn.XLOOKUP("Cash & Equivalents",EDGAR_BalanceSheet[Line Item],EDGAR_BalanceSheet[Value (USD)],0,0),0),IF(AND($C$13,B13<>0),B13,IF(_xlpm.q>0,_xlpm.q,B13))) -> $35,934,000,000 | C34: Balance sheet cash, else manual B13 | D34: =IF(B34>=0,"OK","CHECK") -> OK
A35: Gross Debt ($) | B35: =_xlfn.LET(_xlpm.st,IFERROR(_xlfn.XLOOKUP("Short-Term Debt",EDGAR_BalanceSheet[Line Item],EDGAR_BalanceSheet[Value (USD)],0,0),0),_xlpm.lt,IFERROR(_xlfn.XLOOKUP("Long-Term Debt",EDGAR_BalanceSheet[Line Item],EDGAR_BalanceSheet[Value (USD)],0,0),0),_xlpm.q,_xlpm.st+_xlpm.lt,IF(AND($C$14,B14<>0),B14,IF(_xlpm.q>=0,_xlpm.q,B14))) -> $90,678,000,000 | C35: Short-term + long-term debt, or manual B14 | D35: =IF(B35>=0,"OK","CHECK") -> OK
A36: Net Debt / (Cash) ($) | B36: =B35-B34 -> $54,744,000,000 | C36: Gross debt - cash | D36: =IF(ISNUMBER(B36),"OK","CHECK") -> OK
A37: NWC (% of Change in Revenue) | B37: =B20 -> 3.00% | C37: Manual operating assumption | D37: =IF(AND(B37>=-0.2,B37<=0.3),"OK","CHECK") -> OK
A38: Terminal Growth | B38: =B21 -> 3.00% | C38: Manual long-term assumption | D38: =IF(B38<WACC!$B$22,"OK","INVALID: g >= WACC") -> OK
A39: Base Fiscal Year | B39: =MAX(IFERROR(MAX(EDGAR_IncomeStatement[FY]),0),IFERROR(MAX(EDGAR_BalanceSheet[FY]),0),IFERROR(MAX(EDGAR_StatementOfCashFlows[FY]),0)) -> 2025 | C39: Max FY across query tables | D39: =IF(B39>0,"OK","MISSING") -> OK
A40: Current Shares Outstanding | B40: =_xlfn.LET(_xlpm.so,IFERROR(INDEX(EDGAR_SharesOutstanding[Shares Outstanding],1),0),IF(_xlpm.so>0,_xlpm.so,B26)) -> 14,776,353,000 | C40: EDGAR shares outstanding, else diluted shares fallback | D40: =IF(B40>0,"OK","MISSING") -> OK
A42: Scenario Assumptions
A44: BEAR CASE
A45: Revenue Growth (%) | B45: =0.03 -> 3.00% | C45: =0.02 -> 2.00% | D45: =0.02 -> 2.00% | E45: =0.02 -> 2.00% | F45: =0.02 -> 2.00%
A46: EBIT Margin (%) | B46: =MIN(MAX($B$30+-0.02,0),0.55) -> 29.97% | C46: =MIN(MAX($B$30+-0.01,0),0.55) -> 30.97% | D46: =MIN(MAX($B$30+0,0),0.55) -> 31.97% | E46: =MIN(MAX($B$30+0.01,0),0.55) -> 32.97% | F46: =MIN(MAX($B$30+0.02,0),0.55) -> 33.97%
A47: Tax Rate (%) | B47: =$B$31 -> 15.61% | C47: =$B$31 -> 15.61% | D47: =$B$31 -> 15.61% | E47: =$B$31 -> 15.61% | F47: =$B$31 -> 15.61%
A48: D&A (% of Revenue) | B48: =$B$32 -> 2.81% | C48: =$B$32 -> 2.81% | D48: =$B$32 -> 2.81% | E48: =$B$32 -> 2.81% | F48: =$B$32 -> 2.81%
A49: CapEx (% of Revenue) | B49: =$B$33 -> 3.06% | C49: =$B$33 -> 3.06% | D49: =$B$33 -> 3.06% | E49: =$B$33 -> 3.06% | F49: =$B$33 -> 3.06%
A50: Change in NWC (% of Change in Revenue) | B50: =$B$37 -> 3.00% | C50: =$B$37 -> 3.00% | D50: =$B$37 -> 3.00% | E50: =$B$37 -> 3.00% | F50: =$B$37 -> 3.00%
A51: Terminal Growth Rate | B51: =MAX($B$38-0.01,0) -> 2.00%
A52: WACC | B52: =WACC!$B$22+0.01 -> 10.68%
A54: BASE CASE
A55: Revenue Growth (%) | B55: 8.00% | C55: =0.1 -> 10.00% | D55: =0.08 -> 8.00% | E55: =0.06 -> 6.00% | F55: =0.04 -> 4.00%
A56: EBIT Margin (%) | B56: =MIN(MAX($B$30+0.02,0),0.55) -> 33.97% | C56: =MIN(MAX($B$30+0.04,0),0.55) -> 35.97% | D56: =MIN(MAX($B$30+0.06,0),0.55) -> 37.97% | E56: =MIN(MAX($B$30+0.07,0),0.55) -> 38.97% | F56: =MIN(MAX($B$30+0.08,0),0.55) -> 39.97%
A57: Tax Rate (%) | B57: =$B$31 -> 15.61% | C57: =$B$31 -> 15.61% | D57: =$B$31 -> 15.61% | E57: =$B$31 -> 15.61% | F57: =$B$31 -> 15.61%
A58: D&A (% of Revenue) | B58: =$B$32 -> 2.81% | C58: =$B$32 -> 2.81% | D58: =$B$32 -> 2.81% | E58: =$B$32 -> 2.81% | F58: =$B$32 -> 2.81%
A59: CapEx (% of Revenue) | B59: =$B$33 -> 3.06% | C59: =$B$33 -> 3.06% | D59: =$B$33 -> 3.06% | E59: =$B$33 -> 3.06% | F59: =$B$33 -> 3.06%
A60: Change in NWC (% of Change in Revenue) | B60: =$B$37 -> 3.00% | C60: =$B$37 -> 3.00% | D60: =$B$37 -> 3.00% | E60: =$B$37 -> 3.00% | F60: =$B$37 -> 3.00%
A61: Terminal Growth Rate | B61: =$B$38 -> 3.00%
A62: WACC | B62: =WACC!$B$22 -> 9.68%
A64: BULL CASE
A65: Revenue Growth (%) | B65: 13.00% | C65: =0.15 -> 15.00% | D65: =0.12 -> 12.00% | E65: =0.1 -> 10.00% | F65: =0.08 -> 8.00%
A66: EBIT Margin (%) | B66: =MIN(MAX($B$30+0.06,0),0.55) -> 37.97% | C66: =MIN(MAX($B$30+0.09,0),0.55) -> 40.97% | D66: =MIN(MAX($B$30+0.12,0),0.55) -> 43.97% | E66: =MIN(MAX($B$30+0.14,0),0.55) -> 45.97% | F66: =MIN(MAX($B$30+0.16,0),0.55) -> 47.97%
A67: Tax Rate (%) | B67: =$B$31 -> 15.61% | C67: =$B$31 -> 15.61% | D67: =$B$31 -> 15.61% | E67: =$B$31 -> 15.61% | F67: =$B$31 -> 15.61%
A68: D&A (% of Revenue) | B68: =$B$32 -> 2.81% | C68: =$B$32 -> 2.81% | D68: =$B$32 -> 2.81% | E68: =$B$32 -> 2.81% | F68: =$B$32 -> 2.81%
A69: CapEx (% of Revenue) | B69: =$B$33 -> 3.06% | C69: =$B$33 -> 3.06% | D69: =$B$33 -> 3.06% | E69: =$B$33 -> 3.06% | F69: =$B$33 -> 3.06%
A70: Change in NWC (% of Change in Revenue) | B70: =$B$37 -> 3.00% | C70: =$B$37 -> 3.00% | D70: =$B$37 -> 3.00% | E70: =$B$37 -> 3.00% | F70: =$B$37 -> 3.00%
A71: Terminal Growth Rate | B71: =MIN($B$38+0.005,WACC!$B$22-0.005) -> 3.50%
A72: WACC | B72: =MAX(WACC!$B$22-0.01,$B$71+0.005) -> 8.68%

Sheet WACC
A1: WACC Calculation
A3: COST OF EQUITY (CAP
A4: Risk-Free Rate | B4: =_xlfn.LET(_xlpm.raw,IFERROR('Data Queries'!B2,""),_xlpm.q,IFERROR(IF(ISNUMBER(_xlpm.raw),_xlpm.raw,_xlfn.NUMBERVALUE(SUBSTITUTE(_xlpm.raw,"%",""))/100),0),IF(AND('Model Inputs'!$C$17,'Model Inputs'!$B$17<>0),'Model Inputs'!$B$17,IF(_xlpm.q>0,_xlpm.q,'Model Inputs'!$B$17))) -> 4.35% | C4: 10Y Treasury query, else Model Inputs B17
A5: Equity Risk Premium | B5: ='Model Inputs'!B18 -> 5.00% | C5: Manual ERP
A6: Beta | B6: =_xlfn.LET(_xlpm.raw,IFERROR('Data Queries'!E11,0),_xlpm.q,IFERROR(_xlfn.NUMBERVALUE(_xlpm.raw),0),_xlpm.manual,'Model Inputs'!$B$16,IF(AND('Model Inputs'!$C$16,_xlpm.manual<>0),_xlpm.manual,IF(_xlpm.q>0,_xlpm.q,_xlpm.manual))) -> 1.110 | C6: StockInformation beta, else Model Inputs B16
A7: Cost of Equity | B7: =B4+B6*B5 -> 9.90% | C7: Rf + beta x ERP
A9: COST OF DEBT
A10: Pre-Tax Cost of Debt | B10: =_xlfn.LET(_xlpm.q,ABS(IFERROR(INDEX(Cost_of_Debt[Pre-Tax Cost of Debt],1),0)),_xlpm.fy,IFERROR(INDEX(Cost_of_Debt[FY],1),0),IF(AND('Model Inputs'!$C$19,'Model Inputs'!$B$19<>0),'Model Inputs'!$B$19,IF(AND(_xlpm.fy='Model Inputs'!$B$39,_xlpm.q>0,_xlpm.q<0.3),_xlpm.q,'Model Inputs'!$B$19))) -> 0.00% | C10: Positive query result when plausible; else manual B19
A11: Tax Rate | B11: ='Model Inputs'!B31 -> 15.61% | C11: Normalized tax rate
A12: After-Tax Cost of Debt | B12: =B10*(1-B11) -> 0.00% | C12: Pre-tax cost x (1-tax rate)
A14: CAPITAL STRUCTURE ($)
A15: Market Cap | B15: ='Model Inputs'!B27 -> $4,000,106,520,630 | C15: =_xlfn.FORMULATEXT(B15) -> ='Model Inputs'!B27
A16: Gross Debt | B16: ='Model Inputs'!B35 -> $90,678,000,000 | C16: ='Model Inputs'!B35
A17: Cash & Equivalents | B17: ='Model Inputs'!B34 -> $35,934,000,000 | C17: ='Model Inputs'!B34
A18: Net Debt / (Cash) | B18: ='Model Inputs'!B36 -> $54,744,000,000 | C18: ='Model Inputs'!B36
A19: Capital Base for Weights | B19: =B15+B16 -> $4,090,784,520,630 | C19: =B15+B16
A20: Equity Weight | B20: =IFERROR(B15/B19,0) -> 97.78% | C20: =IFERROR(B15/B19,0)
A21: Debt Weight | B21: =IFERROR(B16/B19,0) -> 2.22% | C21: =IFERROR(B16/B19,0)
A22: WACC | B22: =B7*B20+B12*B21 -> 9.68% | C22: =_xlfn.FORMULATEXT(B22) -> =B7*B20+B12*B21

Sheet Working Capital
A1: Working Capital Cross-Check
A3: Item | B3: Current Value ($)
A4: Accounts Receivable | B4: =_xlfn.XLOOKUP("Accounts Receivable, Net",EDGAR_BalanceSheet[Line Item],EDGAR_BalanceSheet[Value (USD)],0,0) -> $39,777,000,000
A5: Inventory | B5: =_xlfn.XLOOKUP("Inventory",EDGAR_BalanceSheet[Line Item],EDGAR_BalanceSheet[Value (USD)],0,0) -> $5,718,000,000
A6: Other Current Assets | B6: =_xlfn.XLOOKUP("Other Current Assets",EDGAR_BalanceSheet[Line Item],EDGAR_BalanceSheet[Value (USD)],0,0) -> $47,765,000,000
A7: Accounts Payable | B7: =_xlfn.XLOOKUP("Accounts Payable",EDGAR_BalanceSheet[Line Item],EDGAR_BalanceSheet[Value (USD)],0,0) -> $69,860,000,000
A8: Accrued Liabilities | B8: =_xlfn.XLOOKUP("Accrued Liabilities",EDGAR_BalanceSheet[Line Item],EDGAR_BalanceSheet[Value (USD)],0,0) -> $13,016,000,000
A9: Other Current Liabilities | B9: =_xlfn.XLOOKUP("Other Current Liabilities",EDGAR_BalanceSheet[Line Item],EDGAR_BalanceSheet[Value (USD)],0,0) -> $70,405,000,000
A10: Operating NWC | B10: =B4+B5+B6-B7-B8-B9 -> ($60,021,000,000)
A11: Revenue | B11: =_xlfn.XLOOKUP("Total Revenue",EDGAR_IncomeStatement[Line Item],EDGAR_IncomeStatement[Value],0,0) -> $416,161,000,000
A12: Operating NWC % Revenue | B12: =IFERROR(B10/B11,0) -> -14.42%
A13: DCF NWC Assumption | B13: =DCF!B34 -> 3.00%
A15: Note | B15: This is a cross-check only. The DCF still uses the explicit NWC % of revenue-change assumption unless you choose to replace it.

Sheet 3 Statements
B1: Balance Sheet | J1: Income Statement | R1: Statement of Cash Flows

Sheet Historical Actuals
A1: Historical / Base Actuals
A3: Metric | B3: FY | C3: Value | D3: Source
A4: Revenue | B4: ='Model Inputs'!B39 -> 2025 | C4: =_xlfn.XLOOKUP("Total Revenue",EDGAR_IncomeStatement[Line Item],EDGAR_IncomeStatement[Value],0,0) -> $416,161,000,000 | D4: EDGAR_IncomeStatement
A5: EBIT | B5: ='Model Inputs'!B39 -> 2025 | C5: =_xlfn.XLOOKUP("Operating Income (Loss)",EDGAR_IncomeStatement[Line Item],EDGAR_IncomeStatement[Value],0,0) -> $133,050,000,000 | D5: EDGAR_IncomeStatement
A6: EBIT Margin | B6: ='Model Inputs'!B39 -> 2025 | C6: =IFERROR(C5/C4,0) -> 31.97% | D6: Derived
A7: D&A | B7: ='Model Inputs'!B39 -> 2025 | C7: =_xlfn.XLOOKUP("Depreciation, Depletion & Amortization",EDGAR_StatementOfCashFlows[Line Item],EDGAR_StatementOfCashFlows[Value (USD)],0,0) -> $11,698,000,000 | D7: EDGAR_StatementOfCashFlows
A8: CapEx | B8: ='Model Inputs'!B39 -> 2025 | C8: =_xlfn.XLOOKUP("Capital Expenditures",EDGAR_StatementOfCashFlows[Line Item],EDGAR_StatementOfCashFlows[Value (USD)],0,0) -> $12,715,000,000 | D8: EDGAR_StatementOfCashFlows
A9: Cash | B9: ='Model Inputs'!B39 -> 2025 | C9: =_xlfn.XLOOKUP("Cash & Equivalents",EDGAR_BalanceSheet[Line Item],EDGAR_BalanceSheet[Value (USD)],0,0) -> $35,934,000,000 | D9: EDGAR_BalanceSheet
A10: Gross Debt | B10: ='Model Inputs'!B39 -> 2025 | C10: ='Model Inputs'!B35 -> $90,678,000,000 | D10: Derived from BS debt lines
A11: Diluted Shares | B11: ='Model Inputs'!B39 -> 2025 | C11: ='Model Inputs'!B26 -> 15,004,697,000.00 | D11: EDGAR_IncomeStatement

Sheet Model Checks
A1: Model Checks
A2: =IF(COUNTIF(D4:D48,"FAIL")>0,"FAIL",IF(COUNTIF(D4:D48,"WARN")>0,"WARN","PASS")) -> FAIL
A3: Check | B3: Value | C3: Target / Tolerance | D3: Status | E3: Notes
A4: Workbook visible errors | B4: =SUMPRODUCT(--ISERROR(DCF!A1:L82))+SUMPRODUCT(--ISERROR(WACC!A1:C22))+SUMPRODUCT(--ISERROR('Model Inputs'!A1:F72))+SUMPRODUCT(--ISERROR('Data Queries'!A1:N60))+SUMPRODUCT(--ISERROR('3 Statements'!B1:W45)) -> 0 | C4: 0 | D4: =IF(B4=0,"PASS","FAIL") -> PASS | E4: No visible Excel error values in core ranges.
A5: Scenario selector valid | B5: =DCF!B4 -> 2 | C5: 1, 2, or 3 | D5: =IF(OR(B5=1,B5=2,B5=3),"PASS","FAIL") -> PASS | E5: DCF!B4 must select Bear, Base, or Bull.
A6: Selected case resolves | B6: =DCF!B5 -> Base | C6: Bear / Base / Bull | D6: =IF(OR(B6="Bear",B6="Base",B6="Bull"),"PASS","FAIL") -> PASS | E6: Prevents invalid scenario from cascading through CHOOSE formulas.
A7: Current share price available | B7: ='Model Inputs'!B25 -> 270.71 | C7: > 0 | D7: =IF(B7>0,"PASS","FAIL") -> PASS | E7: Required for market cap and implied upside/downside.
A8: Diluted shares available | B8: ='Model Inputs'!B26 -> 15,004,697,000 | C8: > 0 | D8: =IF(B8>0,"PASS","FAIL") -> PASS | E8: Required for implied value per share.
A9: Current shares available | B9: ='Model Inputs'!B40 -> 14,776,353,000 | C9: > 0 | D9: =IF(B9>0,"PASS","FAIL") -> PASS | E9: Required for market cap and WACC capital structure.
A10: Market cap recomputes | B10: ='Model Inputs'!B27-('Model Inputs'!B25*'Model Inputs'!B40) -> 0 | C10: 0 | D10: =IF(ABS(B10)<1,"PASS","FAIL") -> PASS | E10: Market cap must equal price x current shares.
A11: Base revenue available | B11: ='Model Inputs'!B28 -> 416161000000 | C11: > 0 | D11: =IF(B11>0,"PASS","FAIL") -> PASS | E11: Revenue is the top-line projection driver.
A12: Revenue source status | B12: ='Model Inputs'!D28 -> OK | C12: OK preferred | D12: =IF(B12="OK","PASS",IF(B12="INFERRED","WARN","FAIL")) -> PASS | E12: Inferred revenue can be usable but should be reviewed.
A13: Base EBIT available | B13: ='Model Inputs'!B29 -> 133050000000 | C13: Non-zero | D13: =IF(B13<>0,"PASS","FAIL") -> PASS | E13: EBIT is required for NOPAT and free cash flow.
A14: Base EBIT status | B14: ='Model Inputs'!D29 -> OK | C14: OK | D14: =IF(B14="OK","PASS","FAIL") -> PASS | E14: Missing EBIT must hard fail.
A15: EBIT margin sane | B15: ='Model Inputs'!B30 -> 31.97% | C15: 0% to 75% | D15: =IF(AND(B15>0,B15<0.75),"PASS","FAIL") -> PASS | E15: Detects missing EBIT, stale revenue, or non-operating company mismatch.
A16: Tax rate sane | B16: ='Model Inputs'!B31 -> 15.61% | C16: 0% to 40% | D16: =IF(AND(B16>0,B16<0.4),"PASS","WARN") -> PASS | E16: Actual tax rates outside this range need normalization review.
A17: D&A percent sane | B17: ='Model Inputs'!B32 -> 2.81% | C17: 0% to 30% | D17: =IF(AND(B17>0,B17<0.3),"PASS","WARN") -> PASS | E17: Guardrail for stale or missing D&A.
A18: CapEx percent sane | B18: ='Model Inputs'!B33 -> 3.06% | C18: 0% to 50% | D18: =IF(AND(B18>0,B18<0.5),"PASS","WARN") -> PASS | E18: Guardrail for stale or missing CapEx.
A19: Cash available | B19: ='Model Inputs'!B34 -> 35934000000 | C19: > 0 | D19: =IF(B19>=0,"PASS","FAIL") -> PASS | E19: Required for net debt bridge.
A20: Debt available | B20: ='Model Inputs'!B35 -> 90678000000 | C20: > 0 | D20: =IF(B20>=0,"PASS","FAIL") -> PASS | E20: Required for net debt and WACC weights.
A21: Net debt numeric | B21: ='Model Inputs'!B36 -> 54744000000 | C21: Number | D21: =IF(ISNUMBER(B21),"PASS","FAIL") -> PASS | E21: Equity value bridge requires numeric net debt/cash.
A22: WACC positive | B22: =WACC!B22 -> 9.68% | C22: 0% to 30% | D22: =IF(AND(B22>0,B22<0.3),"PASS","FAIL") -> PASS | E22: Discount rate must be positive and plausible.
A23: WACC > terminal growth | B23: =WACC!B22-'Model Inputs'!B38 -> 6.68% | C23: > 0 | D23: =IF(B23>0,"PASS","FAIL") -> PASS | E23: Terminal growth must stay below WACC.
A24: Terminal timing valid | B24: ='Model Inputs'!B22 -> Year-End | C24: Mid-Year / Year-End | D24: =IF(OR(B24="Mid-Year",B24="Year-End"),"PASS","FAIL") -> PASS | E24: Terminal value discount convention must be explicit.
A25: Terminal growth status | B25: ='Model Inputs'!D38 -> OK | C25: OK | D25: =IF(B25="OK","PASS","FAIL") -> PASS | E25: Terminal growth guardrail from Model Inputs.
A26: Cost of debt source/fallback | B26: =IFERROR(INDEX(Cost_of_Debt[FY],1)&" / "&IF(INDEX(Cost_of_Debt[Pre-Tax Cost of Debt],1)>0,TEXT(INDEX(Cost_of_Debt[Pre-Tax Cost of Debt],1),"0.00%"),"n/a"),"missing") -> 2025 / n/a | C26: Current FY or valid manual fallback | D26: =IF(AND(IFERROR(INDEX(Cost_of_Debt[FY],1),0)='Model Inputs'!B39,IFERROR(INDEX(Cost_of_Debt[Pre-Tax Cost of Debt],1),0)>0),"PASS",IF(AND('Model Inputs'!B19>0,'Model Inputs'!B19<0.3),"WARN","FAIL")) -> FAIL | E26: WARN means WACC uses manual debt-cost fallback.
A27: Cost of debt used sane | B27: =WACC!B10 -> 0.00% | C27: 0% to 30% | D27: =IF(AND(B27>0,B27<0.3),"PASS","FAIL") -> FAIL | E27: WACC cannot rely on zero or implausible debt cost.
A28: Debt/equity weights tie | B28: =WACC!B20+WACC!B21 -> 100.00% | C28: 100% | D28: =IF(ABS(B28-1)<0.0001,"PASS","FAIL") -> PASS | E28: Capital structure weights must sum to 100%.
A29: Balance sheet balances | B29: =_xlfn.XLOOKUP("Total Assets",EDGAR_BalanceSheet[Line Item],EDGAR_BalanceSheet[Value (USD)],0,0)-_xlfn.XLOOKUP("Total Liabilities & Equity",EDGAR_BalanceSheet[Line Item],EDGAR_BalanceSheet[Value (USD)],0,0) -> 0 | C29: +/- $1,000 | D29: =IF(ABS(B29)<=1000,"PASS","FAIL") -> PASS | E29: Assets should equal liabilities plus equity.
A30: Cash bridge ties | B30: =_xlfn.XLOOKUP("Cash & Equivalents",EDGAR_BalanceSheet[Line Item],EDGAR_BalanceSheet[Value (USD)],0,0)-(_xlfn.XLOOKUP("Cash & Equivalents - Beginning",EDGAR_StatementOfCashFlows[Line Item],EDGAR_StatementOfCashFlows[Value (USD)],0,0)+_xlfn.XLOOKUP("Net Change in Cash",EDGAR_StatementOfCashFlows[Line Item],EDGAR_StatementOfCashFlows[Value (USD)],0,0)) -> 0 | C30: +/- $1,000 | D30: =IF(ABS(B30)<=1000,"PASS","FAIL") -> PASS | E30: Ending cash should equal beginning cash plus net change.
A31: IS/CF net income ties | B31: =_xlfn.XLOOKUP("Net Income",EDGAR_IncomeStatement[Line Item],EDGAR_IncomeStatement[Value],0,0)-_xlfn.XLOOKUP("Net Income",EDGAR_StatementOfCashFlows[Line Item],EDGAR_StatementOfCashFlows[Value (USD)],0,0) -> 0 | C31: +/- $1,000 | D31: =IF(ABS(B31)<=1000,"PASS","FAIL") -> PASS | E31: Net income should match between income statement and cash flow.
A32: Base FY all statements match | B32: =MIN(MAX(EDGAR_IncomeStatement[FY]),MAX(EDGAR_BalanceSheet[FY]),MAX(EDGAR_StatementOfCashFlows[FY])) -> 2025 | C32: Base FY | D32: =IF(B32='Model Inputs'!B39,"PASS","FAIL") -> PASS | E32: All three financial statements should refresh to same fiscal year.
A33: DCF center sensitivity ties | B33: =DCF!B14-DCF!D70 -> 7.296915093 | C33: 0 | D33: =IF(ABS(B33)<0.01,"PASS","FAIL") -> FAIL | E33: WACC/g sensitivity center should equal headline price.
A34: Growth/margin sensitivity ties | B34: =DCF!B14-DCF!D80 -> 7.296915093 | C34: 0 | D34: =IF(ABS(B34)<0.01,"PASS","FAIL") -> FAIL | E34: Growth/margin sensitivity center should equal headline price.
A35: Implied share price positive | B35: =DCF!B14 -> 173.7591591 | C35: > 0 | D35: =IF(B35>0,"PASS","FAIL") -> PASS | E35: Final output must be economically usable.
A36: Manual operating overrides active | B36: =COUNTIF('Model Inputs'!C7:C17,TRUE)+COUNTIF('Model Inputs'!C19,TRUE) -> 0 | C36: 0 | D36: =IF(B36=0,"PASS","WARN") -> PASS | E36: Excludes ERP; manual overrides should be deliberate.
A37: Operating company applicability | B37: =IF('Model Inputs'!D29="OK","Operating EBIT available","Missing EBIT / nonstandard operating model") -> Operating EBIT available | C37: Operating EBIT available | D37: =IF(B37="Operating EBIT available","PASS","FAIL") -> PASS | E37: DCF is not durable for nonstandard financials without EBIT mapping.
A38: Source Audit aggregate | B38: =IF(COUNTIF('Source Audit'!E4:E30,"FAIL")>0,"FAIL",IF(COUNTIF('Source Audit'!E4:E30,"WARN")>0,"WARN","PASS")) -> WARN | C38: PASS / WARN | D38: =IF(B38="FAIL","FAIL",IF(B38="WARN","WARN","PASS")) -> WARN | E38: Mirrors source quality dashboard.
A39: StockInformation core fields | B39: =COUNTIF('Data Queries'!E2:E13,"n/a")+COUNTIF('Data Queries'!E2:E13,"") -> 0 | C39: 0 | D39: =IF(B39=0,"PASS","WARN") -> PASS | E39: Warn if quote fields needed for review are missing.
A40: Raw unit integrity | B40: =SUMPRODUCT(--ISNUMBER(SEARCH("1000"&"000",_xlfn.FORMULATEXT(DCF!A1:L82))))+SUMPRODUCT(--ISNUMBER(SEARCH("1000"&"000",_xlfn.FORMULATEXT(WACC!A1:C22))))+SUMPRODUCT(--ISNUMBER(SEARCH("1000"&"000",_xlfn.FORMULATEXT('Model Inputs'!A1:F72)))) -> 0 | C40: 0 | D40: =IF(B40=0,"PASS","FAIL") -> PASS | E40: No model formulas should scale raw values down to millions.

Sheet Source Audit
A1: Source Audit & Data Quality
A3: Source | B3: Key Field | C3: Observed | D3: Expected / Fallback | E3: Status | F3: Notes
A4: Income Statement | B4: FY | C4: =MAX(EDGAR_IncomeStatement[FY]) -> 2025 | D4: ='Model Inputs'!B39 -> 2025 | E4: =IF(C4=D4,"PASS","FAIL") -> PASS | F4: Latest annual income statement year.
A5: Balance Sheet | B5: FY | C5: =MAX(EDGAR_BalanceSheet[FY]) -> 2025 | D5: ='Model Inputs'!B39 -> 2025 | E5: =IF(C5=D5,"PASS","FAIL") -> PASS | F5: Latest annual balance sheet year.
A6: Cash Flow | B6: FY | C6: =MAX(EDGAR_StatementOfCashFlows[FY]) -> 2025 | D6: ='Model Inputs'!B39 -> 2025 | E6: =IF(C6=D6,"PASS","FAIL") -> PASS | F6: Latest annual cash flow year.
A7: Shares Outstanding | B7: Shares | C7: =IFERROR(INDEX(EDGAR_SharesOutstanding[Shares Outstanding],1),"") -> 14776353000 | D7: > 0 | E7: =IF(C7>0,"PASS","FAIL") -> PASS | F7: Current shares for market cap.
A8: Cost of Debt | B8: FY / Rate | C8: =IFERROR(INDEX(Cost_of_Debt[FY],1)&" / "&IF(INDEX(Cost_of_Debt[Pre-Tax Cost of Debt],1)>0,TEXT(INDEX(Cost_of_Debt[Pre-Tax Cost of Debt],1),"0.00%"),"n/a"),"") -> 2025 / n/a | D8: Base FY with nonblank rate | E8: =IF(AND(IFERROR(INDEX(Cost_of_Debt[FY],1),0)='Model Inputs'!B39,IFERROR(INDEX(Cost_of_Debt[Pre-Tax Cost of Debt],1),0)>0),"PASS","WARN") -> WARN | F8: WARN means WACC uses manual B19 fallback.
A9: Stock Price | B9: Previous Close | C9: ='Data Queries'!E2 -> 270.71 | D9: > 0 | E9: =IF(IFERROR(_xlfn.NUMBERVALUE(C9),0)>0,"PASS","FAIL") -> PASS | F9: Yahoo chart JSON, not HTML scrape.
A10: Beta | B10: Market beta | C10: ='Data Queries'!E11 -> 1.11 | D10: Manual beta B16 | E10: =IF(IFERROR(_xlfn.NUMBERVALUE(C10),0)>0,"PASS","WARN") -> PASS | F10: WARN is acceptable when using manual beta fallback.
A11: 10Y Treasury | B11: Yield | C11: ='Data Queries'!B2 -> 4.354% | D11: > 0 | E11: =IF(IFERROR(_xlfn.NUMBERVALUE(SUBSTITUTE(C11,"%","")),0)>0,"PASS","FAIL") -> PASS | F11: Risk-free rate source.
A12: Tax Rate | B12: Actual tax / PBT | C12: ='Model Inputs'!B31 -> 15.61% | D12: 0%-40% | E12: =IF(AND(C12>0,C12<0.4),"PASS","WARN") -> PASS | F12: Normalized tax rate control.
A13: Terminal Value | B13: Discount timing | C13: ='Model Inputs'!B22 -> Year-End | D13: Mid-Year / Year-End | E13: =IF(OR(C13="Mid-Year",C13="Year-End"),"PASS","FAIL") -> PASS | F13: Controls headline and sensitivity terminal discounting.
A16: Refresh Diagnostics
A18: Diagnostic | B18: Observed | C18: Expected | D18: Status | E18: Notes | F18: Formula / Source
A19: Last workbook calculation | B19: =NOW() -> 2026-04-29T10:25:49.170 | C19: Timestamp | D19: =IF(B19<>"","PASS","FAIL") -> PASS | E19: Volatile timestamp for review after Refresh All. | F19: =NOW() -> 2026-04-29T10:25:49.170
A20: Ticker | B20: =DCF!A3 -> AAPL | C20: Nonblank | D20: =IF(B20<>"","PASS","FAIL") -> PASS | E20: Ticker driving all queries. | F20: =DCF!A3 -> AAPL
A21: Model Checks summary | B21: ='Model Checks'!A2 -> FAIL | C21: PASS / WARN | D21: =IF(B21="FAIL","FAIL",IF(B21="WARN","WARN","PASS")) -> FAIL | E21: Overall hardening status. | F21: ='Model Checks'!A2 -> FAIL
A22: Income statement rows | B22: =ROWS(EDGAR_IncomeStatement[Line Item]) -> 18 | C22: >= 10 | D22: =IF(B22>=10,"PASS","FAIL") -> PASS | E22: Detects empty/failed income-statement query. | F22: =ROWS(EDGAR_IncomeStatement[Line Item]) -> 18
A23: Balance sheet rows | B23: =ROWS(EDGAR_BalanceSheet[Line Item]) -> 27 | C23: >= 20 | D23: =IF(B23>=20,"PASS","FAIL") -> PASS | E23: Detects empty/failed balance-sheet query. | F23: =ROWS(EDGAR_BalanceSheet[Line Item]) -> 27
A24: Cash flow rows | B24: =ROWS(EDGAR_StatementOfCashFlows[Line Item]) -> 24 | C24: >= 15 | D24: =IF(B24>=15,"PASS","FAIL") -> PASS | E24: Detects empty/failed cash-flow query. | F24: =ROWS(EDGAR_StatementOfCashFlows[Line Item]) -> 24
A25: Stock info rows | B25: =ROWS(StockInformation[Metric]) -> 16 | C25: >= 16 | D25: =IF(B25>=16,"PASS","WARN") -> PASS | E25: Detects quote table shape change. | F25: =ROWS(StockInformation[Metric]) -> 16
A26: Unavailable stock fields | B26: =COUNTIF(StockInformation[Value],"n/a")+COUNTIF(StockInformation[Value],"--") -> 0 | C26: 0 preferred | D26: =IF(B26=0,"PASS","WARN") -> PASS | E26: Some fields can be naturally unavailable, but should be visible. | F26: =COUNTIF(StockInformation[Value],"n/a")+COUNTIF(StockInformation[Value],"--") -> 0
A27: Core output hard fails | B27: =COUNTIF('Model Inputs'!D25:D40,"MISSING")+COUNTIF('Model Inputs'!D25:D40,"INVALID*") -> 0 | C27: 0 | D27: =IF(B27=0,"PASS","FAIL") -> PASS | E27: Missing or invalid controlled outputs must fail before relying on valuation.
A28: Controlled output review flags | B28: =COUNTIF('Model Inputs'!D25:D40,"CHECK") -> 0 | C28: 0 preferred | D28: =IF(B28=0,"PASS","WARN") -> PASS | E28: CHECK items should be normalized or manually confirmed.

Sheet Data Queries

Sheet Query Setup
A1: Manual Query Setup & Overrides
A3: Area | B3: When to use | C3: Instruction
A4: Refresh | B4: Every model update | C4: Use Data > Refresh All, then confirm Model Checks shows PASS or only expected WARN items.
A5: Stock price | B5: If Source Audit stock price FAILs | C5: Enter price in Model Inputs B7 and set C7 TRUE until the query refreshes cleanly.
A6: Beta | B6: If Source Audit beta WARNs | C6: Review/update Model Inputs B16. This is expected when Yahoo chart JSON does not provide beta.
A7: Cost of debt | B7: If Source Audit Cost of Debt WARNs | C7: Update Model Inputs B19 and leave C19 FALSE unless you intentionally override; WACC rejects stale query years.
A8: Terminal value | B8: To change discount convention | C8: Set Model Inputs B22 to Mid-Year or Year-End.
A9: NWC | B9: To override working capital behavior | C9: Update Model Inputs B20; use Working Capital sheet as a reasonableness check.
A10: Validation | B10: Before relying on valuation | C10: Check Model Checks, Source Audit, and DCF sensitivity center values.
